Workbook

Sheet Home

Sheet Air strikes
A1: DATE | B1: COUNTRY | C1: Minimum Strikes | D1: Maximum strikes | E1: TOTAL AIRSTRIKES | F1: AIRSTRIKE CAMPAIGN RUNNING TOTALS (CENTCOM) | G1: TIME (AST) IRAQ/ SYRIA | H1: PLATFORM/WEAPON | I1: LOCATION | J1: LATITUDE & LONGITUDE COORDINATES | K1: YOUTUBE CLIP | L1: TARGET | M1: PURPOSE | N1: EFFECT/OUTCOME | O1: Minimum ISIL Camps/ Training Facilities | P1: Maximum ISIL Camps/ Training Facilities | Q1: Minimum Oil Refineries, collection points & Stores | R1: Maximum Oil Refineries, collection points & Stores | S1: Minimum ISIL Command Posts, Buildings, Structures & Facilities | T1: Maximum ISIL Command Posts, Buildings, Structures & Facilities | U1: Minimum vehicles | V1: Maximum vehicles | W1: Minimum Weaponry | X1: Maximum Weaponry | Y1: Minimum Mortar, Fighting Positions, Units & Observation Posts | Z1: Maximum Mortar, Fighting Positions, Units & Observation Posts | AA1: Minimum checkpoints | AB1: Maximum checkpoints | AC1: Minimum Other | AD1: Maximum Other | AE1: Minimum Total Reported Killed | AF1: Maximum Total Reported Killed | AG1: SOURCE
A2: 2014-08-08 | B2: US | C2: 1 | D2: 1 | E2: 1 | F2: 1 | G2: 13:45:00 | H2: F/A-18 aircraft dropped 500-pound laser-guided bombs | I2: Near Erbil, Iraq | J2: Erbil: 36.1911° N, 44.0092° E | K2: https://www.youtube.com/watch?v=aR8jI_cerss&index=22&list=UUNEEHeS9Y2yFVLbWGeHhbYA | L2: Mobile artillery piece | M2: In support of Kurdish forces defending Erbil against ISIL | N2: 1 x mobile artillery piece | O2: NA | P2: NA | Q2: NA | R2: NA | S2: NA | T2: NA | U2: NA | V2: NA | W2: 1 | X2: 1 | Y2: NA | Z2: NA | AA2: NA | AB2: NA | AC2: NA | AD2: NA | AE2: NA | AF2: NA | AG2: https://www.youtube.com/watch?v=aR8jI_cerss&index=22&list=UUNEEHeS9Y2yFVLbWGeHhbYA
A3: 2014-08-08 | B3: US | C3: 2 | D3: 2 | E3: 2 | F3: =SUM(F2+E3) -> 3 | G3: 15:20:00 | H3: four F/A-18 Hornet | I3: Near Erbil, Iraq | J3: Erbil: 36.1911° N, 44.0092° E | K3: https://www.youtube.com/watch?v=wgunE4MBDaE&index=23&list=UUNEEHeS9Y2yFVLbWGeHhbYA | L3: A stationary ISIL convoy | M3: In support of Kurdish forces defending Erbil against ISIL | N3: Struck a stationary ISIL convoy of 7 x vehicles and 1 x mortar position, neutralizing the mortar and convoy | O3: NA | P3: NA | Q3: NA | R3: NA | S3: NA | T3: NA | U3: 7 | V3: 7 | W3: NA | X3: NA | Y3: 1 | Z3: 1 | AA3: NA | AB3: NA | AC3: NA | AD3: NA | AE3: NA | AF3: NA | AG3: https://www.youtube.com/watch?v=aR8jI_cerss&index=22&list=UUNEEHeS9Y2yFVLbWGeHhbYA
A4: 2014-08-09 | B4: US | C4: 1 | D4: 1 | E4: 4 | F4: =SUM(F3+E4) -> 7 | G4: 18:20:00 | H4: Mix of US fighters and remotely piloted aircraft | I4: Near Sinjar, Iraq | J4: Sinjar: 36.3225° N, 41.8642° E | K4: NA | L4: 1 x armoured personnel carrier (APC) | M4: Defend Yazidi civilians being indiscriminately attacked by ISIL | N4: Destroyed 1 x APC | O4: NA | P4: NA | Q4: NA | R4: NA | S4: NA | T4: NA | U4: 1 | V4: 1 | W4: NA | X4: NA | Y4: NA | Z4: NA | AA4: NA | AB4: NA | AC4: NA | AD4: NA | AE4: NA | AF4: NA | AG4: http://www.centcom.mil/en/news/articles/u.s.-military-conducts-airstrikes-against-isil-in-iraq
A5: 2014-08-09 | B5: US | C5: 1 | D5: 1 | G5: 18:40:00 | H5: Mix of US fighters and remotely piloted aircraft | I5: Near Sinjar, Iraq | J5: Sinjar: 36.3225° N, 41.8642° E | K5: NA | L5: 2 x APCs, 1 x armed truck | M5: Defend Yazidi civilians being indiscriminately attacked by ISIL | N5: Destroyed 1 x APC, 1 x armed truck | O5: NA | P5: NA | Q5: NA | R5: NA | S5: NA | T5: NA | U5: 2 | V5: 2 | W5: NA | X5: NA | Y5: NA | Z5: NA | AA5: NA | AB5: NA | AC5: NA | AD5: NA | AE5: NA | AF5: NA | AG5: http://www.centcom.mil/en/news/articles/u.s.-military-conducts-airstrikes-against-isil-in-iraq
A6: 2014-08-09 | B6: US | C6: 1 | D6: 1 | G6: 18:40:00 | H6: Mix of US fighters and remotely piloted aircraft | I6: Near Sinjar, Iraq | J6: Sinjar: 36.3225° N, 41.8642° E | K6: NA | L6: 1 x APC (follow up strike) | M6: Defend Yazidi civilians being indiscriminately attacked by ISIL | N6: Destroyed 1 x APC | O6: NA | P6: NA | Q6: NA | R6: NA | S6: NA | T6: NA | U6: 1 | V6: 1 | W6: NA | X6: NA | Y6: NA | Z6: NA | AA6: NA | AB6: NA | AC6: NA | AD6: NA | AE6: NA | AF6: NA | AG6: http://www.centcom.mil/en/news/articles/u.s.-military-conducts-airstrikes-against-isil-in-iraq
A7: 2014-08-09 | B7: US | C7: 1 | D7: 1 | G7: 22:00:00 | H7: Mix of US fighters and remotely piloted aircraft | I7: Near Sinjar, Iraq | J7: Sinjar: 36.3225° N, 41.8642° E | K7: NA | L7: 1 x APC | M7: Defend Yazidi civilians being indiscriminately attacked by ISIL | N7: Destroyed 1 x APC | O7: NA | P7: NA | Q7: NA | R7: NA | S7: NA | T7: NA | U7: 1 | V7: 1 | W7: NA | X7: NA | Y7: NA | Z7: NA | AA7: NA | AB7: NA | AC7: NA | AD7: NA | AE7: NA | AF7: NA | AG7: http://www.centcom.mil/en/news/articles/u.s.-military-conducts-airstrikes-against-isil-in-iraq
A8: 2014-08-10 | B8: US | C8: 1 | D8: 1 | E8: 5 | F8: =SUM(F4+E8) -> 12 | G8: 09:15:00 | H8: Mix of US fighters and remotely piloted aircraft | I8: Near Erbil, Iraq | J8: Erbil: 36.1911° N, 44.0092° E | K8: NA | L8: 1 x armed truck | M8: Defend Kurdish forces near Erbil, where US personnel and citizens are located | N8: Destroyed 1 x armed truck | O8: NA | P8: NA | Q8: NA | R8: NA | S8: NA | T8: NA | U8: 1 | V8: 1 | W8: NA | X8: NA | Y8: NA | Z8: NA | AA8: NA | AB8: NA | AC8: NA | AD8: NA | AE8: NA | AF8: NA | AG8: http://www.centcom.mil/en/news/articles/u.s.-military-conducts-airstrikes-against-isil-near-Erbil
A9: 2014-08-10 | B9: US | C9: 1 | D9: 1 | G9: 09:45:00 | H9: Mix of US fighters and remotely piloted aircraft | I9: Near Erbil, Iraq | J9: Erbil: 36.1911° N, 44.0092° E | K9: NA | L9: 1 x armed truck | M9: Defend Kurdish forces near Erbil, where US personnel and citizens are located | N9: Destroyed 1 x armed truck | O9: NA | P9: NA | Q9: NA | R9: NA | S9: NA | T9: NA | U9: 1 | V9: 1 | W9: NA | X9: NA | Y9: NA | Z9: NA | AA9: NA | AB9: NA | AC9: NA | AD9: NA | AE9: NA | AF9: NA | AG9: http://www.centcom.mil/en/news/articles/u.s.-military-conducts-airstrikes-against-isil-near-Erbil
A10: 2014-08-10 | B10: US | C10: 1 | D10: 1 | G10: 10:40:00 | H10: Mix of US fighters and remotely piloted aircraft | I10: Near Erbil, Iraq | J10: Erbil: 36.1911° N, 44.0092° E | K10: NA | L10: 1 x mortar position, 1 x armed truck | M10: Defend Kurdish forces near Erbil, where US personnel and citizens are located | N10: Destroyed 1 x mortar position; damaged 1 x armed truck | O10: NA | P10: NA | Q10: NA | R10: NA | S10: NA | T10: NA | U10: 1 | V10: 1 | W10: NA | X10: NA | Y10: 1 | Z10: 1 | AA10: NA | AB10: NA | AC10: NA | AD10: NA | AE10: NA | AF10: NA | AG10: http://www.centcom.mil/en/news/articles/u.s.-military-conducts-airstrikes-against-isil-near-Erbil
A11: 2014-08-10 | B11: US | C11: 1 | D11: 1 | G11: 12:45:00 | H11: Mix of US fighters and remotely piloted aircraft | I11: Near Erbil, Iraq | J11: Erbil: 36.1911° N, 44.0092° E | K11: NA | L11: 1 x armed truck | M11: Defend Kurdish forces near Erbil, where US personnel and citizens are located | N11: Destroyed 1 x armed truck | O11: NA | P11: NA | Q11: NA | R11: NA | S11: NA | T11: NA | U11: 1 | V11: 1 | W11: NA | X11: NA | Y11: NA | Z11: NA | AA11: NA | AB11: NA | AC11: NA | AD11: NA | AE11: NA | AF11: NA | AG11: http://www.centcom.mil/en/news/articles/u.s.-military-conducts-airstrikes-against-isil-near-Erbil
A12: 2014-08-10 | B12: US | C12: 1 | D12: 1 | G12: 14:25:00 | H12: Mix of US fighters and remotely piloted aircraft | I12: Near Erbil, Iraq | J12: Erbil: 36.1911° N, 44.0092° E | K12: NA | L12: 1 x armed vehicle | M12: Defend Kurdish forces near Erbil, where US personnel and citizens are located | N12: Damaged 1 x armed vehicle | O12: NA | P12: NA | Q12: NA | R12: NA | S12: NA | T12: NA | U12: 1 | V12: 1 | W12: NA | X12: NA | Y12: NA | Z12: NA | AA12: NA | AB12: NA | AC12: NA | AD12: NA | AE12: NA | AF12: NA | AG12: http://www.centcom.mil/en/news/articles/u.s.-military-conducts-airstrikes-against-isil-near-Erbil
A13: 2014-08-11 | B13: US | C13: 1 | D13: 1 | E13: 1 | F13: =SUM(F8+E13+E14+E15+E16+E17+E18+E19) -> 19 | G13: 23:00:00 | H13: Multiple U.S. fighter aircraft | I13: Near Erbil, Iraq | J13: Erbil: 36.1911° N, 44.0092° E | K13: NA | L13: ISIL convoy | M13: Defend Kurdish forces near Erbil, where US personnel and citizens are located | N13: Destroyed several vehicles | O13: NA | P13: NA | Q13: NA | R13: NA | S13: NA | T13: NA | U13: > 2 | V13: NA | W13: NA | X13: NA | Y13: NA | Z13: NA | AA13: NA | AB13: NA | AC13: NA | AD13: NA | AE13: NA | AF13: NA | AG13: http://www.centcom.mil/en/news/articles/u.s.-military-conducts-airstrikes-against-isil-near-Erbil-11-aug-14
A14: 2014-08-11 | B14: US | C14: 1 | D14: 1 | E14: 1 | G14: 20:10:00 | H14: U.S. fighter aircraft | I14: Southwest of Sinjar Mountain, Iraq | J14: Sinjar Mountain: 36.3667° N, 41.7218° E | K14: NA | L14: ISIL checkpoint | M14: Defense of internally displaced Yazidi civilians | N14: Destroyed 1 x ISIL checkpoint southwest of Sinjar Mountain | O14: NA | P14: NA | Q14: NA | R14: NA | S14: NA | T14: NA | U14: NA | V14: NA | W14: NA | X14: NA | Y14: NA | Z14: NA | AA14: 1 | AB14: 1 | AC14: NA | AD14: NA | AE14: NA | AF14: NA | AG14: http://www.centcom.mil/en/news/articles/aug-11-u.s.-military-conducts-airstrikes-against-isil-near-sinjar
A15: 2014-08-11 | B15: US | C15: 1 | D15: 1 | E15: 1 | G15: 20:10:00 | H15: U.S. fighter aircraft | I15: Southwest of Sinjar Mountain, Iraq | J15: Sinjar Mountain: 36.3667° N, 41.7218° E | K15: NA | L15: 1 x APC, 1 x armed truck | M15: Defense of internally displaced Yazidi civilians | N15: Destroyed 1 x APC, 1 x armed truck | O15: NA | P15: NA | Q15: NA | R15: NA | S15: NA | T15: NA | U15: 2 | V15: 2 | W15: NA | X15: NA | Y15: NA | Z15: NA | AA15: NA | AB15: NA | AC15: NA | AD15: NA | AE15: NA | AF15: NA | AG15: http://www.centcom.mil/en/news/articles/aug-11-u.s.-military-conducts-airstrikes-against-isil-near-sinjar
A16: 2014-08-11 | B16: US | C16: 1 | D16: 1 | E16: 1 | G16: 21:05:00 | H16: U.S. fighter aircraft | I16: South of Sinjar, Iraq | J16: Sinjar: 36.3225° N, 41.8642° E | K16: NA | L16: ISIL checkpoint | M16: Defense of internally displaced Yazidi civilians | N16: Destroyed 1 x ISIL checkpoint | O16: NA | P16: NA | Q16: NA | R16: NA | S16: NA | T16: NA | U16: NA | V16: NA | W16: NA | X16: NA | Y16: NA | Z16: NA | AA16: 1 | AB16: 1 | AC16: NA | AD16: NA | AE16: NA | AF16: NA | AG16: http://www.centcom.mil/en/news/articles/aug-11-u.s.-military-conducts-airstrikes-against-isil-near-sinjar
A17: 2014-08-11 | B17: US | C17: 1 | D17: 1 | E17: 1 | G17: 21:05:00 | H17: U.S. fighter aircraft | I17: South of Sinjar, Iraq | J17: Sinjar: 36.3225° N, 41.8642° E | K17: NA | L17: 1 x High-Mobility Multipurpose Wheeled Vehicle, 1 x armed truck | M17: Defense of internally displaced Yazidi civilians | N17: Destroyed 1 x High-Mobility Multipurpose Wheeled Vehicle, 1 x armed truck | O17: NA | P17: NA | Q17: NA | R17: NA | S17: NA | T17: NA | U17: 2 | V17: 2 | W17: NA | X17: NA | Y17: NA | Z17: NA | AA17: NA | AB17: NA | AC17: NA | AD17: NA | AE17: NA | AF17: NA | AG17: http://www.centcom.mil/en/news/articles/aug-11-u.s.-military-conducts-airstrikes-against-isil-near-sinjar
A18: 2014-08-11 | B18: US | C18: 1 | D18: 1 | E18: 1 | G18: 22:30:00 | H18: U.S. fighter aircraft | I18: Southeast of Sinjar, Iraq | J18: Sinjar: 36.3225° N, 41.8642° E | K18: NA | L18: ISIL checkpoint | M18: Defense of internally displaced Yazidi civilians | N18: Damaged 1 x ISIL checkpoint | O18: NA | P18: NA | Q18: NA | R18: NA | S18: NA | T18: NA | U18: NA | V18: NA | W18: NA | X18: NA | Y18: NA | Z18: NA | AA18: 1 | AB18: 1 | AC18: NA | AD18: NA | AE18: NA | AF18: NA | AG18: http://www.centcom.mil/en/news/articles/aug-11-u.s.-military-conducts-airstrikes-against-isil-near-sinjar
A19: 2014-08-11 | B19: US | C19: 1 | D19: 1 | E19: 1 | G19: 23:30:00 | H19: U.S. fighter aircraft | I19: East of Sinjar, Iraq | J19: Sinjar: 36.3225° N, 41.8642° E | K19: NA | L19: ISIL checkpoint | M19: Defense of internally displaced Yazidi civilians | N19: Destroyed 1 x ISIL checkpoint, 1 x armed truck. | O19: NA | P19: NA | Q19: NA | R19: NA | S19: NA | T19: NA | U19: 1 | V19: 1 | W19: NA | X19: NA | Y19: NA | Z19: NA | AA19: 1 | AB19: 1 | AC19: NA | AD19: NA | AE19: NA | AF19: NA | AG19: http://www.centcom.mil/en/news/articles/aug-11-u.s.-military-conducts-airstrikes-against-isil-near-sinjar
A20: 2014-08-12 | B20: US | C20: 1 | D20: 1 | E20: 1 | F20: =SUM(F13+E20) -> 20 | G20: 14:55:00 | H20: U.S. remotely piloted aircraft | I20: North of Sinjar, Iraq | J20: Sinjar: 36.3225° N, 41.8642° E | K20: NA | L20: ISIL mortar position | M20: Defend Kurdish forces defending internally displaced Yazidi civilians | N20: Destroyed 1 x ISIL mortar position | O20: NA | P20: NA | Q20: NA | R20: NA | S20: NA | T20: NA | U20: NA | V20: NA | W20: NA | X20: NA | Y20: 1 | Z20: 1 | AA20: NA | AB20: NA | AC20: NA | AD20: NA | AE20: NA | AF20: NA | AG20: http://www.centcom.mil/en/news/articles/aug.-12-u.s.-military-conducts-airstrike-against-isil-north-of-sinjar
A21: 2014-08-13 | B21: US | C21: 1 | D21: 1 | E21: 1 | F21: =SUM(F20+E21) -> 21 | G21: 19:20:00 | H21: U.S. remotely piloted aircraft | I21: West of Sinjar, Iraq | J21: Sinjar: 36.3225° N, 41.8642° E | K21: NA | L21: 1 x armed truck | M21: Engage ISIL terrorists in Iraq | N21: Destroyed 1 x armed truck | O21: NA | P21: NA | Q21: NA | R21: NA | S21: NA | T21: NA | U21: 1 | V21: 1 | W21: NA | X21: NA | Y21: NA | Z21: NA | AA21: NA | AB21: NA | AC21: NA | AD21: NA | AE21: NA | AF21: NA | AG21: http://www.centcom.mil/en/news/articles/u.s.-military-conducts-airstrike-against-isil-west-of-sinjar
A22: 2014-08-14 | B22: US | C22: 1 | D22: 1 | E22: 1 | F22: =SUM(F21+E22+E23+E24+E25) -> 25 | G22: 18:05:00 | H22: Mix of fighter and remotely piloted aircraft | I22: Northwest of Erbil, Iraq | J22: Erbil: 36.1911° N, 44.0092° E | K22: NA | L22: ISIL Strongholds Northwest of Erbil, Iraq | M22: Defend Kurdish forces | N22: Destroyed 1 x armed vehicle | O22: NA | P22: NA | Q22: NA | R22: NA | S22: NA | T22: NA | U22: 1 | V22: 1 | W22: NA | X22: NA | Y22: NA | Z22: NA | AA22: NA | AB22: NA | AC22: NA | AD22: NA | AE22: NA | AF22: NA | AG22: http://www.centcom.mil/en/news/articles/u.s.-military-conducts-airstrike-against-isil-northeast-of-Erbil
A23: 2014-08-14 | B23: US | C23: 1 | D23: 1 | E23: 1 | G23: 18:07:00 | H23: Mix of fighter and remotely piloted aircraft | I23: Northwest of Erbil, Iraq | J23: Erbil: 36.1911° N, 44.0092° E | K23: NA | L23: ISIL Strongholds Northwest of Erbil, Iraq | M23: Defend Kurdish forces | N23: Destroyed 1 x armed vehicle | O23: NA | P23: NA | Q23: NA | R23: NA | S23: NA | T23: NA | U23: 1 | V23: 1 | W23: NA | X23: NA | Y23: NA | Z23: NA | AA23: NA | AB23: NA | AC23: NA | AD23: NA | AE23: NA | AF23: NA | AG23: http://www.centcom.mil/en/news/articles/u.s.-military-conducts-airstrike-against-isil-northeast-of-Erbil
A24: 2014-08-14 | B24: US | C24: 1 | D24: 1 | E24: 1 | G24: 18:40:00 | H24: Mix of fighter and remotely piloted aircraft | I24: Northwest of Erbil, Iraq | J24: Erbil: 36.1911° N, 44.0092° E | K24: NA | L24: ISIL Strongholds Northwest of Erbil, Iraq | M24: Defend Kurdish forces | N24: Struck 1 x mine-resistant ambush-protected (MRAP) vehicle | O24: NA | P24: NA | Q24: NA | R24: NA | S24: NA | T24: NA | U24: 0 | V24: 0 | W24: NA | X24: NA | Y24: NA | Z24: NA | AA24: NA | AB24: NA | AC24: NA | AD24: NA | AE24: NA | AF24: NA | AG24: http://www.centcom.mil/en/news/articles/u.s.-military-conducts-airstrike-against-isil-northeast-of-Erbil
A25: 2014-08-14 | B25: US | C25: 1 | D25: 1 | E25: 1 | G25: 19:55:00 | H25: Mix of fighter and remotely piloted aircraft | I25: Northwest of Erbil, Iraq | J25: Erbil: 36.1911° N, 44.0092° E | K25: NA | L25: ISIL Strongholds Northwest of Erbil, Iraq | M25: Defend Kurdish forces | N25: Returned and destroyed 1 x mine-resistant ambush-protected (MRAP) vehicle | O25: NA | P25: NA | Q25: NA | R25: NA | S25: NA | T25: NA | U25: 1 | V25: 1 | W25: NA | X25: NA | Y25: NA | Z25: NA | AA25: NA | AB25: NA | AC25: NA | AD25: NA | AE25: NA | AF25: NA | AG25: http://www.centcom.mil/en/news/articles/u.s.-military-conducts-airstrike-against-isil-northeast-of-Erbil
A26: 2014-08-15 | B26: US | C26: 1 | D26: 1 | E26: 1 | F26: =SUM(F22+E26) -> 26 | G26: 17:10:00 | H26: U.S. remotely piloted aircraft | I26: South of Sinjar, Iraq | J26: Sinjar: 36.3225° N, 41.8642° E | K26: NA | L26: 2 x armed vehicles | M26: In defence of the village of Kawju | N26: Destroyed 2 x armed vehicle | O26: NA | P26: NA | Q26: NA | R26: NA | S26: NA | T26: NA | U26: 2 | V26: 2 | W26: NA | X26: NA | Y26: NA | Z26: NA | AA26: NA | AB26: NA | AC26: NA | AD26: NA | AE26: NA | AF26: NA | AG26: http://www.centcom.mil/en/news/articles/aug.-15-u.s.-military-conducts-airstrikes-against-isil-near-sinjar
A27: 2014-08-16 | B27: US | C27: 1 | D27: ≤7 | E27: 9 | F27: =F26+E27 -> 35 | G27: NA | H27: Mix of fighter and remotely piloted aircraft | I27: Near Erbil, Iraq | J27: Erbil: 36.1911° N, 44.0092° E | K27: NA | L27: ISIL Strongholds near Erbil and the Mosul Dam. | M27: To support humanitarian efforts & protect U.S. personnel and facilities. | N27: Destroyed or damaged 4 x APCs, 7 x armed vehicles, 2 x Humvees, 1 x armored vehicle. | O27: NA | P27: NA | Q27: NA | R27: NA | S27: NA | T27: NA | U27: 14 | V27: 14 | W27: NA | X27: NA | Y27: NA | Z27: NA | AA27: NA | AB27: NA | AC27: NA | AD27: NA | AE27: NA | AF27: NA | AG27: http://www.centcom.mil/en/news/articles/us-military-conducts-airstrikes-against-isil-near-Erbil-the-mosul-dam
A28: 2014-08-16 | B28: US | C28: 1 | D28: ≤7 | G28: NA | H28: Mix of fighter and remotely piloted aircraft | I28: Near Mosul Dam, Iraq. | J28: Mosul Dam: 36.6303° N, 42.8231° E | K28: https://www.youtube.com/watch?v=c5_Bh1sqMPw&list=UUNEEHeS9Y2yFVLbWGeHhbYA&index=18 | L28: ISIL Strongholds near Erbil and the Mosul Dam. | M28: To support humanitarian efforts & protect U.S. personnel and facilities. | AG28: http://www.centcom.mil/en/news/articles/us-military-conducts-airstrikes-against-isil-near-Erbil-the-mosul-dam
A29: 2014-08-16 | B29: US | C29: 1 | D29: ≤7 | H29: Mix of fighter and remotely piloted aircraft | I29: Near Mosul Dam, Iraq. | J29: Mosul Dam: 36.6303° N, 42.8231° E | K29: https://www.youtube.com/watch?v=EHPvs-eo55w&list=UUNEEHeS9Y2yFVLbWGeHhbYA&index=19 | L29: ISIL Strongholds near Erbil and the Mosul Dam. | M29: To support humanitarian efforts & protect U.S. personnel and facilities. | AG29: http://www.centcom.mil/en/news/articles/us-military-conducts-airstrikes-against-isil-near-Erbil-the-mosul-dam
A30: 2014-08-17 | B30: US | C30: 14 | D30: 14 | E30: 14 | F30: =F27+E30 -> 49 | G30: NA | H30: Mix of fighter, bomber, attack and remotely piloted aircraft | I30: Near the Mosul Dam, Iraq. | J30: Mosul Dam: 36.6303° N, 42.8231° E | K30: NA | L30: ISIL Strongholds near Mosul Dam. | M30: To support humanitarian efforts, to protect critical infrastructure, U.S. personnel and facilities, and support Iraqi security forces and Kurdish defense forces. | N30: Damaged or destroyed 10 x armed vehicles, 7 x Humvees, 2 x armored personnel carriers, 1 x checkpoint. | O30: NA | P30: NA | Q30: NA | R30: NA | S30: NA | T30: NA | U30: 19 | V30: 19 | W30: NA | X30: NA | Y30: NA | Z30: NA | AA30: 1 | AB30: 1 | AC30: NA | AD30: NA | AE30: NA | AF30: NA | AG30: http://www.centcom.mil/en/news/articles/aug.-17-u.s.-military-conducts-airstrikes-against-isil-near-the-mosul-dam
A31: 2014-08-17 | B31: US | C31: 1 | D31: >1 | E31: 1 | F31: =SUM(F30+E31) -> 50 | G31: NA | H31: Mix of fighter and attack aircraft | I31: Near the Mosul Dam, Iraq. | J31: Mosul Dam: 36.6303° N, 42.8231° E | K31: NA | L31: ISIL Strongholds near Mosul Dam. | M31: To support humanitarian efforts, to protect critical infrastructure, U.S. personnel and facilities, and support Iraqi security forces and Kurdish defense forces. | N31: Destroyed 3 x armed vehicles, 1 x vehicle-mounted anti-aircraft artillery gun, 1 x checkpoint, 1 x IED emplacement. | O31: NA | P31: NA | Q31: NA | R31: NA | S31: 1 | T31: 1 | U31: 3 | V31: 3 | W31: 1 | X31: 1 | Y31: NA | Z31: NA | AA31: 1 | AB31: 1 | AC31: NA | AD31: NA | AE31: NA | AF31: NA | AG31: http://www.centcom.mil/en/news/articles/aug.-17-u.s.-military-conducts-airstrikes-against-isil-near-the-mosul-dam2
A32: 2014-08-18 | B32: US | C32: 1 | D32: ≤14 | E32: 15 | F32: =SUM(F31+E32) -> 65 | G32: NA | H32: Mix of US fighter, bomber, and remotely piloted aircraft | I32: Near the Mosul Dam, Iraq. | J32: Mosul Dam: 36.6303° N, 42.8231° E | K32: https://www.youtube.com/watch?v=M1FlcbDEslM&index=17&list=UUNEEHeS9Y2yFVLbWGeHhbYA | L32: ISIL Strongholds near Mosul Dam. | M32: To support humanitarian efforts, to protect critical infrastructure, U.S. personnel and facilities, and support Iraqi security forces and Kurdish defense forces. | N32: Damaged or destroyed 9 x fighting positions; 1 x checkpoint; 6 x armed vehicles; 1 x light armored vehicle; 1 x ISIL vehicle-mounted anti-aircraft artillery gun, 1 x IED emplacement belt. | O32: NA | P32: NA | Q32: NA | R32: NA | S32: 1 | T32: 1 | U32: 7 | V32: 7 | W32: 1 | X32: 1 | Y32: 9 | Z32: 9 | AA32: 1 | AB32: 1 | AC32: NA | AD32: NA | AE32: NA | AF32: NA | AG32: http://www.centcom.mil/en/news/articles/aug.-18-u.s.-military-conducts-airstrikes-against-isil-near-the-mosul-dam
A33: 2014-08-18 | B33: US | C33: 1 | D33: ≤14 | G33: NA | H33: Mix of US fighter, bomber, and remotely piloted aircraft | I33: Near the Mosul Dam, Iraq. | J33: Mosul Dam: 36.6303° N, 42.8231° E | K33: https://www.youtube.com/watch?v=OQdjrotXZMU&list=UUNEEHeS9Y2yFVLbWGeHhbYA&index=16 | L33: ISIL Strongholds near Mosul Dam. | M33: To support humanitarian efforts, to protect critical infrastructure, U.S. personnel and facilities, and support Iraqi security forces and Kurdish defense forces. | O33: NA | P33: NA | Q33: NA | R33: NA | AC33: NA | AD33: NA | AE33: NA | AF33: NA | AG33: http://www.centcom.mil/en/news/articles/aug.-18-u.s.-military-conducts-airstrikes-against-isil-near-the-mosul-dam
A34: 2014-08-19 | B34: US | C34: 1 | D34: 1 | E34: 1 | F34: =SUM(F32+E34) -> 66 | G34: NA | H34: US fighter aircraft | I34: Near the Mosul Dam, Iraq. | J34: Mosul Dam: 36.6303° N, 42.8231° E | K34: NA | L34: 1 x ISIL checkpoint | M34: To support humanitarian efforts, to protect critical infrastructure, U.S. personnel and facilities, and support Iraqi security forces and Kurdish defense forces. | N34: Not successful in destroying ISIL checkpoint | O34: NA | P34: NA | Q34: NA | R34: NA | S34: NA | T34: NA | U34: 0 | V34: 0 | W34: NA | X34: NA | Y34: NA | Z34: NA | AA34: NA | AB34: NA | AC34: NA | AD34: NA | AE34: NA | AF34: NA | AG34: http://www.centcom.mil/en/news/articles/u.s.-military-conducts-airstrikes-against-isil-near-mosul-dam
A35: 2014-08-19 | B35: US | C35: 1 | D35: 1 | E35: 1 | F35: =F34+E35 -> 67 | G35: NA | H35: US fighter aircraft | I35: Near the Mosul Dam, Iraq. | J35: Mosul Dam: 36.6303° N, 42.8231° E | K35: NA | L35: 1 x ISIL checkpoint | M35: To support humanitarian efforts, to protect critical infrastructure, U.S. personnel and facilities, and support Iraqi security forces and Kurdish defense forces. | N35: Destroyed 1 x ISIL checkpoint | O35: NA | P35: NA | Q35: NA | R35: NA | S35: NA | T35: NA | U35: NA | V35: NA | W35: NA | X35: NA | Y35: NA | Z35: NA | AA35: 1 | AB35: 1 | AC35: NA | AD35: NA | AE35: NA | AF35: NA | AG35: http://www.centcom.mil/en/news/articles/u.s.-military-conducts-airstrikes-against-isil-near-mosul-dam
A36: 2014-08-20 | B36: US | C36: 14 | D36: 14 | E36: 14 | F36: =F35+E36 -> 81 | G36: NA | H36: Mix of US fighter, remotely piloted and attack aircraft | I36: Near the Mosul Dam, Iraq. | J36: Mosul Dam: 36.6303° N, 42.8231° E | K36: NA | L36: ISIL Strongholds near Mosul Dam. | M36: To support humanitarian efforts, to protect critical infrastructure, U.S. personnel and facilities, and support Iraqi security forces and Kurdish defense forces. | N36: Destroyed or damaged 6 x Humvees, 3x IED emplacements, 1 x mortar tube, 2 x armed trucks. | O36: NA | P36: NA | Q36: NA | R36: NA | S36: 3 | T36: 3 | U36: 8 | V36: 8 | W36: 1 | X36: 1 | Y36: NA | Z36: NA | AA36: NA | AB36: NA | AC36: NA | AD36: NA | AE36: NA | AF36: NA | AG36: http://www.centcom.mil/en/news/articles/aug.-20-u.s.-military-conducts-airstrikes-against-isil-near-mosul-dam
A37: 2014-08-21 | B37: US | C37: 6 | D37: 6 | E37: 6 | F37: 87 | G37: NA | H37: Mix of fighter and attack aircraft | I37: Near the Mosul Dam, Iraq. | J37: Mosul Dam: 36.6303° N, 42.8231° E | K37: NA | L37: ISIL Strongholds near Mosul Dam. | M37: To support humanitarian efforts, to protect critical infrastructure, U.S. personnel and facilities, and support Iraqi security forces and Kurdish defense forces. | N37: Destroyed or damaged 3 x Humvees, 1 x vehicle, and multiple IED emplacements. | O37: NA | P37: NA | Q37: NA | R37: NA | S37: >2 | T37: NA | U37: 4 | V37: 4 | W37: NA | X37: NA | Y37: NA | Z37: NA | AA37: NA | AB37: NA | AC37: NA | AD37: NA | AE37: NA | AF37: NA | AG37: http://www.centcom.mil/en/news/articles/aug.-21-u.s.-military-conducts-airstrikes-against-isil-near-mosul-dam
A38: 2014-08-22 | B38: US | C38: 3 | D38: 3 | E38: 3 | F38: 90 | G38: NA | H38: Mix of fighter and attack aircraft | I38: Near the Mosul Dam, Iraq. | J38: Mosul Dam: 36.6303° N, 42.8231° E | K38: NA | L38: ISIL Strongholds near Mosul Dam. | M38: To support Iraqi security forces beign fired on by ISIL. | N38: Destroyed 2 x armed vehicles, 1 x machine gun emplacement. | O38: NA | P38: NA | Q38: NA | R38: NA | S38: 1 | T38: 1 | U38: 2 | V38: 2 | W38: NA | X38: NA | Y38: NA | Z38: NA | AA38: NA | AB38: NA | AC38: NA | AD38: NA | AE38: NA | AF38: NA | AG38: http://www.centcom.mil/en/news/articles/aug.-22-u.s.-military-conducts-airstrikes-against-isil-near-mosul-dam
A39: 2014-08-23 | B39: US | C39: 1 | D39: 1 | E39: 1 | F39: 91 | G39: NA | H39: US fighter aircraft | I39: Near Mosul Dam, Iraq. | J39: Mosul Dam: 36.6303° N, 42.8231° E | K39: NA | L39: ISIL Strongholds near Mosul Dam. | M39: To support humanitarian efforts, to protect critical infrastructure, U.S. personnel and facilities, and support Iraqi security forces and Kurdish defense forces. | N39: Destroyed 1x vehicle | O39: NA | P39: NA | Q39: NA | R39: NA | S39: NA | T39: NA | U39: 1 | V39: 1 | W39: NA | X39: NA | Y39: NA | Z39: NA | AA39: NA | AB39: NA | AC39: NA | AD39: NA | AE39: NA | AF39: NA | AG39: http://www.centcom.mil/en/news/articles/aug.-22-u.s.-military-conducts-airstrikes-against-isil-near-mosul-dam
A40: 2014-08-24 | B40: US | C40: 1 | D40: 1 | E40: 1 | F40: 92 | G40: NA | H40: Mix of attack and remotely-piloted aircraft | I40: Near Mosul Dam, Iraq. | J40: Mosul Dam: 36.6303° N, 42.8231° E | K40: NA | L40: ISIL Strongholds near Mosul Dam. | M40: To support humanitarian efforts, to protect critical infrastructure, U.S. personnel and facilities, and support Iraqi security forces and Kurdish defense forces. | N40: Destroyed 1 x humvee | O40: NA | P40: NA | Q40: NA | R40: NA | S40: NA | T40: NA | U40: 1 | V40: 1 | W40: NA | X40: NA | Y40: NA | Z40: NA | AA40: NA | AB40: NA | AC40: NA | AD40: NA | AE40: NA | AF40: NA | AG40: http://www.centcom.mil/en/news/articles/aug.-23-u.s.-military-conducts-airstrike-against-isil-near-mosul-dam
A41: 2014-08-24 | B41: US | C41: 1 | D41: 1 | E41: 1 | F41: 93 | G41: NA | H41: Mix of attack and remotely-piloted aircraft | I41: Near Erbil, Iraq | J41: Erbil: 36.1911° N, 44.0092° E | K41: NA | L41: ISIL Strongholds near Erbil | M41: To support humanitarian efforts, to protect critical infrastructure, U.S. personnel and facilities, and support Iraqi security forces and Kurdish defense forces. | N41: Destroyed 1 x armed vehicle | O41: NA | P41: NA | Q41: NA | R41: NA | S41: NA | T41: NA | U41: 1 | V41: 1 | W41: NA | X41: NA | Y41: NA | Z41: NA | AA41: NA | AB41: NA | AC41: NA | AD41: NA | AE41: NA | AF41: NA | AG41: http://www.centcom.mil/en/news/articles/aug-24-us-military-conducts-airstrikes-against-isil-near-Erbil-and-mosul
A42: 2014-08-26 | B42: US | C42: 1 | D42: 1 | E42: 1 | F42: 94 | G42: NA | H42: US attack aircraft | I42: Near Erbil, Iraq | J42: Erbil: 36.1911° N, 44.0092° E | K42: NA | L42: ISIL Strongholds near Erbil | M42: To support humanitarian efforts, to protect critical infrastructure, U.S. personnel and facilities, and support Iraqi security forces and Kurdish defense forces. | N42: Destroyed 2 x armed vehicles and damaged 1 x armed vehicle | O42: NA | P42: NA | Q42: NA | R42: NA | S42: NA | T42: NA | U42: 3 | V42: 3 | W42: NA | X42: NA | Y42: NA | Z42: NA | AA42: NA | AB42: NA | AC42: NA | AD42: NA | AE42: NA | AF42: NA | AG42: http://www.centcom.mil/en/news/articles/aug-26-u.s.-military-conducts-airstrikes-against-isil-near-Erbil
A43: 2014-08-26 | B43: US | C43: 1 | D43: 1 | E43: 1 | F43: 95 | G43: NA | H43: US attack aircraft | I43: Near Erbil, Iraq | J43: Erbil: 36.1911° N, 44.0092° E | K43: NA | L43: ISIL Strongholds near Erbil | M43: To support humanitarian efforts, to protect critical infrastructure, U.S. personnel and facilities, and support Iraqi security forces and Kurdish defense forces. | AG43: http://www.centcom.mil/en/news/articles/aug-26-u.s.-military-conducts-airstrikes-against-isil-near-Erbil
A44: 2014-08-27 | B44: US | C44: 1 | D44: ≤2 | E44: 3 | F44: =F43+E44 -> 98 | G44: NA | H44: Mix of fighter, attack, and remotely piloted aircraft | I44: Near Erbil, Iraq | J44: Erbil: 36.1911° N, 44.0092° E | K44: NA | L44: ISIL strongholds near Erbil | M44: To support humanitarian efforts, to protect critical infrastructure, U.S. personnel and facilities, and support Iraqi security forces and Kurdish defense forces. | N44: Destroyed 1 x Humvee, 1 x supply truck, 3 x armored vehicles, severely damaged 1 x ISIL building. | O44: NA | P44: NA | Q44: NA | R44: NA | S44: 1 | T44: 1 | U44: 5 | V44: 5 | W44: NA | X44: NA | Y44: NA | Z44: NA | AA44: NA | AB44: NA | AC44: NA | AD44: NA | AE44: NA | AF44: NA | AG44: http://www.centcom.mil/en/news/articles/aug-27-u.s.-military-conducts-airstrikes-against-isil-near-Erbil-and-mosul
A45: 2014-08-27 | B45: US | C45: 1 | D45: ≤2 | G45: NA | H45: Mix of fighter, attack, and remotely piloted aircraft | I45: Near Mosul Dam, Iraq. | J45: Mosul Dam: 36.6303° N, 42.8231° E | K45: NA | L45: ISIL strongholds nearMosul Dam | M45: To support humanitarian efforts, to protect critical infrastructure, U.S. personnel and facilities, and support Iraqi security forces and Kurdish defense forces. | AG45: http://www.centcom.mil/en/news/articles/aug-27-u.s.-military-conducts-airstrikes-against-isil-near-Erbil-and-mosul
A46: 2014-08-28 | B46: US | C46: 5 | D46: 5 | E46: 5 | F46: =F44+E46 -> 103 | G46: NA | H46: US fighter aircraft | I46: Near Mosul Dam, Iraq. | J46: Mosul Dam: 36.6303° N, 42.8231° E | K46: NA | L46: ISIL strongholds near Mosul Dam. | M46: To support humanitarian efforts, to protect critical infrastructure, U.S. personnel and facilities, and support Iraqi security forces and Kurdish defense forces. | N46: Destroyed 1 x Humvee, 1 x tank, 4 x armed vehicles, 1 x ISIL construction vehicle and severely damaged 1 x ISIL checkpoint. | O46: NA | P46: NA | Q46: NA | R46: NA | S46: NA | T46: NA | U46: 7 | V46: 7 | W46: NA | X46: NA | Y46: NA | Z46: NA | AA46: 1 | AB46: 1 | AC46: NA | AD46: NA | AE46: NA | AF46: NA | AG46: http://www.centcom.mil/en/news/articles/aug-28-u.s.-military-conducts-airstrikes-against-isil-near-mosul-dam
A47: 2014-08-29 | B47: US | C47: 4 | D47: 4 | E47: 4 | F47: =SUM(F46+E47) -> 107 | G47: NA | H47: US fighter and attack aircraft | I47: Near Mosul Dam, Iraq. | J47: Mosul Dam: 36.6303° N, 42.8231° E | K47: NA | L47: ISIL strongholds near Mosul Dam. | M47: To support humanitarian efforts, to protect critical infrastructure, U.S. personnel and facilities, and support Iraqi security forces and Kurdish defense forces. | N47: Destroyed 4 x armed vehicles, severely damaged 1 x armed vehicle, and destroyed 3 x support vehicles. | O47: NA | P47: NA | Q47: NA | R47: NA | S47: NA | T47: NA | U47: 8 | V47: 8 | W47: NA | X47: NA | Y47: NA | Z47: NA | AA47: NA | AB47: NA | AC47: NA | AD47: NA | AE47: NA | AF47: NA | AG47: http://www.centcom.mil/en/news/articles/aug-29-u.s.-military-conducts-airstrikes-against-isil-near-mosul-dam
A48: 2014-08-30 | B48: US | C48: 5 | D48: 5 | E48: 5 | F48: =SUM(F47+E48) -> 112 | G48: NA | H48: US fighter and remotely-piloted aircraft | I48: Near Mosul Dam, Iraq. | J48: Mosul Dam: 36.6303° N, 42.8231° E | K48: NA | L48: ISIL strongholds near Mosul Dam. | M48: To support humanitarian efforts, to protect critical infrastructure, U.S. personnel and facilities, and support Iraqi security forces and Kurdish defense forces. | N48: Destroyed 1 x armed vehicle, 1 x fighting position, 1 x ISIL weapons, and significantly damaged 1 x ISIL building. | O48: NA | P48: NA | Q48: NA | R48: NA | S48: 1 | T48: 1 | U48: 1 | V48: 1 | W48: 1 | X48: 1 | Y48: 1 | Z48: 1 | AC48: NA | AD48: NA | AE48: NA | AF48: NA | AG48: http://www.centcom.mil/en/news/articles/aug-30-u.s.-military-conducts-airstrikes-against-isil-near-mosul-dam
A49: 2014-08-30 | B49: US | C49: 3 | D49: 3 | E49: 3 | F49: 115 | G49: 03:30:00 | H49: US fighter aircraft | I49: Near Amirli, Iraq | J49: Amirli: 34.7250° N, 44.5875° E | K49: NA | L49: ISIL bloackade near Amirli | M49: At the request of the Government of Iraq, conducted airstrikes in support of an operation to deliver humanitarian assistance and protect civilians trapped in Amirli, Iraq. | N49: Destroyed 3 x ISIL Humvees, 1 x ISIL armed vehicle, 1 x ISIL checkpoint and 1 x ISIL tank. | O49: NA | P49: NA | Q49: NA | R49: NA | S49: NA | T49: NA | U49: 5 | V49: 5 | W49: NA | X49: NA | Y49: NA | Z49: NA | AA49: 1 | AB49: 1 | AC49: NA | AD49: NA | AE49: NA | AF49: NA | AG49: http://www.centcom.mil/en/news/articles/us-military-conducts-airstrikes-against-isil-airdrops-humanitarian-aid-iraq
A50: 2014-08-31 | B50: US | C50: 1 | D50: 1 | E50: 1 | F50: 116 | G50: NA | H50: US fighter and attack aircraft | I50: Near Mosul Dam, Iraq. | J50: Mosul Dam: 36.6303° N, 42.8231° E | K50: NA | L50: ISIL strongholds near Mosul Dam. | M50: At the request of the Government of Iraq, conducted airstrikes in support of an operation to deliver humanitarian assistance and protect civilians trapped in Amirli, Iraq & under authority to protect U.S. personnel and facilities, support humanitarian efforts, and support Iraqi forces that are acting in furtherance of these objectives. | N50: Destroyed 1 x armed vehicle | O50: NA | P50: NA | Q50: NA | R50: NA | S50: NA | T50: NA | U50: 1 | V50: 1 | W50: NA | X50: NA | Y50: NA | Z50: NA | AA50: NA | AB50: NA | AC50: NA | AD50: NA | AE50: NA | AF50: NA | AG50: http://www.centcom.mil/en/news/articles/u.s.-military-conducts-airstrikes-against-isil-near-amirli-and-mosul-dam
A51: 2014-08-31 | B51: US | C51: 1 | D51: 1 | E51: 1 | F51: 117 | G51: NA | H51: US fighter and attack aircraft | I51: Near Amirli, Iraq | J51: Amirli: 34.7250° N, 44.5875° E | K51: NA | L51: ISIL bloackade near Amirli | M51: The strikes were conducted under authority to protect U.S. personnel and facilities, support humanitarian efforts, and support Iraqi forces that are acting in furtherance of these objectives. | N51: Damaged 1 x ISIL tank | O51: NA | P51: NA | Q51: NA | R51: NA | S51: NA | T51: NA | U51: 1 | V51: 1 | W51: NA | X51: NA | Y51: NA | Z51: NA | AA51: NA | AB51: NA | AC51: NA | AD51: NA | AE51: NA | AF51: NA
A52: 2014-09-02 | B52: US | C52: 1 | D52: 1 | E52: 1 | F52: 118 | G52: NA | H52: US fighter and attack aircraft | I52: Near Mosul Dam, Iraq. | J52: Mosul Dam: 36.6303° N, 42.8231° E | K52: NA | L52: ISIL strongholds near Mosul Dam. | M52: Conducted under authority to protect U.S. personnel and facilities, support humanitarian efforts, and support Iraqi forces that are acting in furtherance of these objectives. | N52: Destroyed or damaged 16 x ISIL armed vehicles | O52: NA | P52: NA | Q52: NA | R52: NA | S52: NA | T52: NA | U52: 16 | V52: 16 | W52: NA | X52: NA | Y52: NA | Z52: NA | AA52: NA | AB52: NA | AC52: NA | AD52: NA | AE52: NA | AF52: NA | AG52: http://www.centcom.mil/en/news/articles/u.s.-military-conducts-airstrike-against-isil-near-the-mosul-dam
A53: 3/09/2014 -4/09/2014 | B53: US | C53: 1 | D53: ≤2 | E53: 3 | F53: =F52+E53 -> 121 | G53: NA | H53: US fighter aircraft | I53: Near Mosul Dam, Iraq. | J53: Mosul Dam: 36.6303° N, 42.8231° E | K53: NA | L53: ISIL strongholds near Mosul Dam. | M53: Conducted under authority to protect U.S. personnel and facilities, support humanitarian efforts, and support Iraqi forces that are acting in furtherance of these objectives. | N53: Destroyed 2 x ISIL armed vehicles and 1 x ISIL observation post | O53: NA | P53: NA | Q53: NA | R53: NA | S53: NA | T53: NA | U53: 2 | V53: 2 | W53: NA | X53: NA | Y53: 1 | Z53: 1 | AA53: NA | AB53: NA | AC53: NA | AD53: NA | AE53: NA | AF53: NA | AG53: http://www.centcom.mil/en/news/articles/sept.-4-u.s.-military-conducts-airstrikes-against-isil-in-support-of-mosul
A54: 3/09/2014 -4/09/2014 | B54: US | C54: 1 | D54: ≤2 | G54: NA | H54: US fighter aircraft | I54: Near Mosul Dam, Iraq. | J54: Mosul Dam: 36.6303° N, 42.8231° E | K54: NA | L54: ISIL strongholds near Mosul Dam. | M54: Conducted under authority to protect U.S. personnel and facilities, support humanitarian efforts, and support Iraqi forces that are acting in furtherance of these objectives. | AG54: http://www.centcom.mil/en/news/articles/sept.-4-u.s.-military-conducts-airstrikes-against-isil-in-support-of-mosul
A55: 4/09/2014 -5/09/2014 | B55: US | C55: 1 | D55: ≤3 | E55: 4 | F55: =F53+E55 -> 125 | G55: NA | H55: Mix of US fighter, attack, bomber and unmanned aircraft | I55: Near Mosul Dam and Erbil, Iraq. | J55: Mosul Dam: 36.6303° N, 42.8231° E | K55: NA | L55: ISIL strongholds near Mosul Dam. | M55: Conducted under authority to protect U.S. personnel and facilities, support humanitarian efforts, and support Iraqi forces that are acting in furtherance of these objectives. | N55: Destroyed 1 x ISIL observation post, 1 x ISIL Humvee, 1 x ISIL armed vehicle, 1 x ISIL truck, and 3 x ISIL mortar positions. | O55: NA | P55: NA | Q55: NA | R55: NA | S55: NA | T55: NA | U55: 3 | V55: 3 | W55: NA | X55: NA | Y55: 4 | Z55: 4 | AA55: NA | AB55: NA | AC55: NA | AD55: NA | AE55: NA | AF55: NA | AG55: http://www.centcom.mil/en/news/articles/sept.-5-u.s.-military-conducts-airstrikes-against-isil
A56: 4/09/2014 -5/09/2014 | B56: US | C56: 1 | D56: ≤3 | H56: Mix of US fighter, attack, bomber and unmanned aircraft | I56: Near Mosul Dam and Erbil, Iraq. | J56: Erbil: 36.1911° N, 44.0092° E | K56: NA | L56: ISIL strongholds near Erbil | M56: Conducted under authority to protect U.S. personnel and facilities, support humanitarian efforts, and support Iraqi forces that are acting in furtherance of these objectives. | AG56: http://www.centcom.mil/en/news/articles/sept.-5-u.s.-military-conducts-airstrikes-against-isil
A57: 5/09/2014 - 6/09/2014 | B57: US | C57: 1 | D57: 1 | E57: 2 | F57: =F55+E57 -> 127 | G57: NA | H57: Mix of US attack, fighter and remotely piloted aircraft | I57: Near Erbil, Iraq | J57: Erbil: 36.1911° N, 44.0092° E | K57: NA | L57: ISIL strongholds near Erbil | M57: Conducted under authority to protect U.S. personnel and facilities, support humanitarian efforts, and support Iraqi forces that are acting in furtherance of these objectives. | N57: Destroyed 4 x ISIL Humvees, 1 x ISIL armored personnel carrier, 2 x ISIL trucks (one of which carried 1 x mounted machine gun). 1 x ISIL Humvee and 1 x ISIL truck were damaged in the strikes. | O57: NA | P57: NA | Q57: NA | R57: NA | S57: NA | T57: NA | U57: 9 | V57: 9 | W57: 1 | X57: 1 | Y57: NA | Z57: NA | AA57: NA | AB57: NA | AC57: NA | AD57: NA | AE57: NA | AF57: NA | AG57: http://www.centcom.mil/en/news/articles/sept.-6-u.s.-military-conducts-airstrikes-in-support-of-defense-of-irbil
A58: 5/09/2014 - 6/09/2014 | B58: US | C58: 1 | D58: 1 | G58: NA | H58: Mix of US attack, fighter and remotely piloted aircraft | I58: Near Erbil, Iraq | J58: Erbil: 36.1911° N, 44.0092° E | K58: NA | L58: ISIL strongholds near Erbil | M58: Conducted under authority to protect U.S. personnel and facilities, support humanitarian efforts, and support Iraqi forces that are acting in furtherance of these objectives. | AG58: http://www.centcom.mil/en/news/articles/sept.-6-u.s.-military-conducts-airstrikes-in-support-of-defense-of-irbil
A59: 2014-09-06 | B59: US | C59: 4 | D59: 4 | E59: 4 | F59: =F57+E59 -> 131 | G59: NA | H59: Mix of US fighter and bomber aircraft | I59: Haditha Dam in Anbar province, Iraq | J59: Haditha Dam: 34.2069° N, 42.3550° E | K59: NA | L59: ISIL strongholds near Haditha in Anbar province | M59: At the request of the government of Iraq, U.S. military forces attacked ISIL terrorists near Haditha in Anbar province in support of Iraqi security forces and Sunni tribes protecting the Haditha dam. | N59: Destroyed 5 x ISIL Humvees, 1 x ISIL armed vehicle, 1 x ISIL checkpoint. Damaged 1 x ISIL bunker | O59: NA | P59: NA | Q59: NA | R59: NA | S59: 1 | T59: 1 | U59: 6 | V59: 6 | W59: NA | X59: NA | Y59: NA | Z59: NA | AA59: 1 | AB59: 1 | AC59: NA | AD59: NA | AE59: NA | AF59: NA | AG59: http://www.centcom.mil/en/news/articles/07-us-military-conducts-airstrikes-against-isil-in-support-of-haditha-dam
A60: 2014-09-06 | B60: US | C60: 1 | D60: 1 | E60: 1 | F60: =F59+E60 -> 132 | G60: NA | H60: Mix of US fighter and bomber aircraft | I60: Near Mosul Dam | J60: Mosul Dam: 36.6303° N, 42.8231° E | K60: NA | L60: ISIL strongholds near Mosul Dam. | M60: At the request of the government of Iraq and in support of Iraqi security forces protecting Mosul Dam. | N60: Damaged 1 x ISIL Humvee. | O60: NA | P60: NA | Q60: NA | R60: NA | S60: NA | T60: NA | U60: 1 | V60: 1 | W60: NA | X60: NA | Y60: NA | Z60: NA | AA60: NA | AB60: NA | AC60: NA | AD60: NA | AE60: NA | AF60: NA
A61: 7/09/2014 - 8/09/2014 | B61: US | C61: 4 | D61: 4 | E61: 4 | F61: =F60+E61 -> 136 | G61: NA | H61: Mix of US attack, fighter and remotely piloted aircraft | I61: Haditha Dam Anbar province, Iraq | J61: Haditha Dam: 34.2069° N, 42.3550° E | K61: NA | L61: ISIL strongholds near Haditha in Anbar province | M61: In support of Iraqi Security Forces and Sunni tribes protecting the Haditha Dam | N61: Destroyed 3 x ISIL armed vehicles (1 x of which was carrying anti-aircraft artillery), 1 x large ISIL ground unit near the Haditha Dam | O61: NA | P61: NA | Q61: NA | R61: NA | S61: NA | T61: NA | U61: 3 | V61: 3 | W61: >2 | X61: NA | Y61: 1 | Z61: 1 | AA61: NA | AB61: NA | AC61: NA | AD61: NA | AE61: NA | AF61: NA | AG61: http://www.centcom.mil/en/news/articles/sept.8-u.s.-military-conducts-airstrikes-against-isil-in-iraq
A62: 7/09/2014 - 8/09/2014 | B62: US | C62: 1 | D62: 1 | E62: 1 | F62: =F61+E62 -> 137 | G62: NA | H62: Mix of US attack, fighter and remotely piloted aircraft | I62: Near Erbil, Iraq | J62: Erbil: 36.1911° N, 44.0092° E | K62: NA | L62: ISIL strongholds near Erbil | M62: In the defense of Erbil | N62: Destroyed 1 x ISIL Humvee | O62: NA | P62: NA | Q62: NA | R62: NA | S62: NA | T62: NA | U62: 1 | V62: 1 | W62: NA | X62: NA | Y62: NA | Z62: NA | AA62: NA | AB62: NA | AC62: NA | AD62: NA | AE62: NA | AF62: NA | AG62: http://www.centcom.mil/en/news/articles/sept.8-u.s.-military-conducts-airstrikes-against-isil-in-iraq
A63: 8/09/2014 - 9/09/2014 | B63: US | C63: 1 | D63: ≤4 | E63: 5 | F63: =F62+E63 -> 142 | G63: NA | H63: Mix of US attack, fighter and remotely piloted aircraft | I63: Haditha Dam Anbar province, Iraq | J63: Haditha Dam: 34.2069° N, 42.3550° E | K63: NA | L63: ISIL strongholds near Haditha in Anbar province | M63: In support of Iraqi Security Forces and Sunni tribes protecting the Haditha Dam. | N63: Destroyed or damaged 8 x ISIL armed vehicles (2 x of which were transporting anti-aircraft artillery); 5 ISIL vehicles, and 1 x ISIL transport vehicle | O63: NA | P63: NA | Q63: NA | R63: NA | S63: NA | T63: NA | U63: 14 | V63: 14 | W63: >2 | X63: NA | Y63: NA | Z63: NA | AA63: NA | AB63: NA | AC63: NA | AD63: NA | AE63: NA | AF63: NA | AG63: http://www.centcom.mil/en/news/articles/sept-9-u.s.-military-conducts-airstrikes-against-isil-in-support-of-haditha
A64: 8/09/2014 - 9/09/2014 | B64: US | C64: 1 | D64: ≤4 | G64: NA | H64: Mix of US attack, fighter and remotely piloted aircraft | I64: Haditha Dam Anbar province, Iraq | J64: Haditha Dam: 34.2069° N, 42.3550° E | K64: NA | L64: ISIL strongholds near Haditha in Anbar province | M64: In support of Iraqi Security Forces and Sunni tribes protecting the Haditha Dam. | AG64: http://www.centcom.mil/en/news/articles/sept-9-u.s.-military-conducts-airstrikes-against-isil-in-support-of-haditha
A65: 2014-09-09 | B65: US | C65: 1 | D65: 1 | E65: 1 | F65: =F63+E65 -> 143 | G65: NA | H65: US attack aircraft | I65: Near Erbil, Iraq | J65: Erbil: 36.1911° N, 44.0092° E | K65: NA | L65: ISIL strongholds near Erbil | M65: In the defense of Erbil | N65: Destroyed 1 x ISIL armed vehicle | O65: NA | P65: NA | Q65: NA | R65: NA | S65: NA | T65: NA | U65: 1 | V65: 1 | W65: NA | X65: NA | Y65: NA | Z65: NA | AA65: NA | AB65: NA | AC65: NA | AD65: NA | AE65: NA | AF65: NA | AG65: http://www.centcom.mil/en/news/articles/sept.-10-u.s.-military-conducts-airstrike-against-isil-in-support-of-defens
A66: 10/09/2014 - 11/09/2014 | B66: US | C66: 1 | D66: 1 | E66: 1 | F66: =F65+E66 -> 144 | G66: NA | H66: US attack aircraft | I66: Near the Mosul Dam, Iraq. | J66: Mosul Dam: 36.6303° N, 42.8231° E | K66: NA | L66: ISIL strongholds near Mosul Dam. | M66: In support of Iraqi Security Forces. | N66: Destroyed 2 x ISIL machine gun emplacements and 1 x ISIL bunker | O66: NA | P66: NA | Q66: NA | R66: NA | S66: 3 | T66: 3 | U66: NA | V66: NA | W66: NA | X66: NA | Y66: NA | Z66: NA | AA66: NA | AB66: NA | AC66: NA | AD66: NA | AE66: NA | AF66: NA | AG66: http://www.centcom.mil/en/news/articles/sept.-11-u.s.-military-conducts-airstrikes-against-isil-near-the-mosul-dam
A67: 10/09/2014 - 11/09/2014 | B67: US | C67: 1 | D67: 1 | E67: 1 | F67: =F66+E67 -> 145 | G67: NA | H67: US attack aircraft | I67: Near the Mosul Dam, Iraq. | J67: Mosul Dam: 36.6303° N, 42.8231° E | K67: NA | L67: ISIL strongholds near Mosul Dam. | M67: In support of Iraqi Security Forces. | AG67: http://www.centcom.mil/en/news/articles/sept.-11-u.s.-military-conducts-airstrikes-against-isil-near-the-mosul-dam
A68: 11/09/2014 -12/09/2014 | B68: US | C68: 1 | D68: 1 | E68: 1 | F68: 146 | G68: NA | H68: US attack aircraft | I68: Near the Mosul Dam, Iraq. | J68: Mosul Dam: 36.6303° N, 42.8231° E | K68: NA | L68: ISIL strongholds near Mosul Dam. | M68: In support of Iraqi Security Forces. | N68: Destroyed 2 x ISIL armed vehicles | O68: NA | P68: NA | Q68: NA | R68: NA | S68: NA | T68: NA | U68: 2 | V68: 2 | W68: NA | X68: NA | Y68: NA | Z68: NA | AA68: NA | AB68: NA | AC68: NA | AD68: NA | AE68: NA | AF68: NA | AG68: http://www.centcom.mil/en/news/articles/sept.-12-u.s.-military-conducts-airstrikes-against-isil-near-the-mosul-dam
A69: 11/09/2014 -12/09/2014 | B69: US | C69: 1 | D69: 1 | E69: 1 | F69: 147 | H69: US attack aircraft | I69: Near Erbil, Iraq | J69: Erbil: 36.1911° N, 44.0092° E | K69: NA | L69: ISIL strongholds near Erbil | M69: In the defense of Erbil | AG69: http://www.centcom.mil/en/news/articles/sept.-12-u.s.-military-conducts-airstrikes-against-isil-near-the-mosul-dam
A70: 2014-09-12 | B70: US | C70: 2 | D70: 2 | E70: 2 | F70: 149 | G70: NA | H70: US attack aircraft | I70: Near the Mosul Dam, Iraq. | J70: Mosul Dam: 36.6303° N, 42.8231° E | K70: NA | L70: ISIL strongholds near Mosul Dam. | M70: In support of Iraqi Security Forces. | N70: Destroyed an ISIL mortar emplacement and 1 x ISIL armed vehicle | O70: NA | P70: NA | Q70: NA | R70: NA | S70: 1 | T70: 1 | U70: 1 | V70: 1 | W70: NA | X70: NA | Y70: NA | Z70: NA | AA70: NA | AB70: NA | AC70: NA | AD70: NA | AE70: NA | AF70: NA | AG70: http://www.centcom.mil/en/news/articles/sept.-13-u.s.-military-conducts-airstrikes-against-isil-near-the-mosul-dam
A71: 14/09/2014 -15/09/2014 | B71: US | C71: 1 | D71: 1 | E71: 1 | F71: 150 | G71: NA | H71: US attack and fighter aircraft | I71: Near Sinjar, Iraq | J71: Sinjar: 36.3225° N, 41.8642° E | K71: NA | L71: ISIL strongholds near Sinjar | M71: In support of Iraqi Security Forces near Sinjar | N71: Destroyed 6 x ISIL vehicles | O71: NA | P71: NA | Q71: NA | R71: NA | S71: NA | T71: NA | U71: 6 | V71: 6 | W71: NA | X71: NA | Y71: NA | Z71: NA | AA71: NA | AB71: NA | AC71: NA | AD71: NA | AE71: NA | AF71: NA | AG71: http://www.centcom.mil/en/news/articles/u.s.-military-conducts-airstrikes-against-isil-near-sinjar-and-southwest-of
A72: 14/09/2014 -15/09/2014 | B72: US | C72: 1 | D72: 1 | E72: 1 | F72: 151 | H72: US attack and fighter aircraft | I72: Southwest of Baghdad, Iraq | J72: Baghdad: 33.3250° N, 44.4220° E | K72: NA | L72: ISIL strongholds near Baghdad | M72: In support of Iraqi Security Forces southwest of Baghdad & as part of US expanded efforts beyond protecting US citizens and humanitarian missions to hit ISIL targets as Iraqi forces go on offense, as outlined in the President's speech on 10.09.14. | N72: Destroyed 1 x ISIL fighting position southwest of Baghdad | O72: NA | P72: NA | Q72: NA | R72: NA | S72: NA | T72: NA | U72: NA | V72: NA | W72: NA | X72: NA | Y72: 1 | Z72: 1 | AA72: NA | AB72: NA | AC72: NA | AD72: NA | AE72: NA | AF72: NA | AG72: http://www.centcom.mil/en/news/articles/u.s.-military-conducts-airstrikes-against-isil-near-sinjar-and-southwest-of
A73: 15/09/2014 - 16/09/2014 | B73: US | C73: 3 | D73: 3 | E73: 3 | F73: 154 | G73: NA | H73: US fighter aircraft | I73: Southwest of Baghdad, Iraq | J73: Baghdad: 33.3250° N, 44.4220° E | K73: NA | L73: ISIL strongholds near Baghdad | M73: In support of Iraqi Security Forces southwest of Baghdad & as part of US expanded efforts. | N73: Damaged 1 x ISIL truck and destroyed 1 x ISIL anti-aircraft artillery piece,1 x small ISIL ground unit and 2 x small boats on the Euphrates River that were re-supplying ISIL forces in the area. | O73: NA | P73: NA | Q73: NA | R73: NA | S73: NA | T73: NA | U73: 3 | V73: 3 | W73: 1 | X73: 1 | Y73: 1 | Z73: 1 | AA73: NA | AB73: NA | AC73: NA | AD73: NA | AE73: NA | AF73: NA | AG73: http://www.centcom.mil/en/news/articles/sept-16-us-military-conducts-airstrikes-against-isil-southwest-of-baghdad
A74: 15/09/2014 - 16/09/2014 | B74: US | C74: 2 | D74: 2 | E74: 2 | F74: 156 | G74: NA | H74: US fighter aircraft | I74: Northwest of Erbil, Iraq | J74: Erbil: 36.1911° N, 44.0092° E | K74: NA | L74: ISIL strongholds near Erbil | M74: In the defense of Erbil | N74: Destroyed 1 x ISIL armed truck and 1 x ISIL fighting position | O74: NA | P74: NA | Q74: NA | R74: NA | S74: NA | T74: NA | U74: 1 | V74: 1 | W74: NA | X74: NA | Y74: 1 | Z74: 1 | AA74: NA | AB74: NA | AC74: NA | AD74: NA | AE74: NA | AF74: NA | AG74: http://www.centcom.mil/en/news/articles/sept-16-us-military-conducts-airstrikes-against-isil-southwest-of-baghdad
A75: 16/09/2014 -17/09/2014 | B75: US | C75: 2 | D75: 2 | E75: 2 | F75: 158 | G75: NA | H75: Mix of US fighter, attack and remotely piloted aircraft | I75: Northwest of Erbil, Iraq | J75: Erbil: 36.1911° N, 44.0092° E | K75: NA | L75: ISIL strongholds near Erbil | M75: In the defense of Erbil | N75: Destroyed 2 x ISIL armed vehicles | O75: NA | P75: NA | Q75: NA | R75: NA | S75: NA | T75: NA | U75: 2 | V75: 2 | W75: NA | X75: NA | Y75: NA | Z75: NA | AA75: NA | AB75: NA | AC75: NA | AD75: NA | AE75: NA | AF75: NA | AG75: http://www.centcom.mil/en/news/articles/sept-17-us-military-conducts-airstrikes-against-isil-in-iraq
A76: 16/09/2014 -17/09/2014 | B76: US | C76: 1 | D76: 1 | E76: 1 | F76: 159 | G76: NA | H76: Mix of US fighter, attack and remotely piloted aircraft | I76: Northwest of Haditha Dam Anbar province, Iraq | J76: Haditha Dam: 34.2069° N, 42.3550° E | K76: NA | L76: ISIL strongholds near Haditha in Anbar province | M76: In support of Iraqi Security Forces and Sunni tribes protecting the Haditha Dam. | N76: Destroyed 1 x ISIL armed vehicle | O76: NA | P76: NA | Q76: NA | R76: NA | S76: NA | T76: NA | U76: 1 | V76: 1 | W76: NA | X76: NA | Y76: NA | Z76: NA | AA76: NA | AB76: NA | AC76: NA | AD76: NA | AE76: NA | AF76: NA | AG76: http://www.centcom.mil/en/news/articles/sept-17-us-military-conducts-airstrikes-against-isil-in-iraq
A77: 16/09/2014 -17/09/2014 | B77: US | C77: 4 | D77: 4 | E77: 4 | F77: 163 | G77: NA | H77: Mix of US fighter, attack and remotely piloted aircraft | I77: Southwest of Baghdad, Iraq | J77: Baghdad: 33.3250° N, 44.4220° E | K77: NA | L77: ISIL strongholds near Baghdad | M77: In support of Iraqi Security Forces southwest of Baghdad & as part of US expanded efforts. | N77: Destroyed several small ISIL ground units and 1 x small boat on the Euphrates River that was re-supplying ISIL forces in the area | O77: NA | P77: NA | Q77: NA | R77: NA | S77: NA | T77: NA | U77: 1 | V77: 1 | W77: NA | X77: NA | Y77: > 3 | Z77: NA | AA77: NA | AB77: NA | AC77: NA | AD77: NA | AE77: NA | AF77: NA | AG77: http://www.centcom.mil/en/news/articles/sept-17-us-military-conducts-airstrikes-against-isil-in-iraq
A78: 17/09/2014 -18/09/2014 | B78: US | C78: 1 | D78: 1 | E78: 1 | F78: 164 | G78: NA | H78: Mix of US bomber and fighter aircraft | I78: Southeast of Baghdad, Iraq | J78: Baghdad: 33.3250° N, 44.4220° E | K78: NA | L78: ISIL strongholds near Baghdad | M78: Strikes were conducted under authority to protect U.S. personnel and facilities, support humanitarian efforts, and assist Iraqi forces in their offensive against ISIL terrorists. | N78: Damaged 1 x ISIL ammunition stockpile. | O78: NA | P78: NA | Q78: NA | R78: NA | S78: NA | T78: NA | U78: NA | V78: NA | W78: 1 | X78: 1 | Y78: NA | Z78: NA | AA78: NA | AB78: NA | AC78: NA | AD78: NA | AE78: NA | AF78: NA | AG78: http://www.centcom.mil/en/news/articles/sept.-18-u.s.-military-conducts-airstrikes-against-isil-in-iraq
A79: 17/09/2014 -18/09/2014 | B79: US | C79: 1 | D79: 1 | E79: 1 | F79: 165 | G79: NA | H79: Mix of US bomber and fighter aircraft | I79: Southeast of Mosul, Iraq | J79: Mosul: 36.3400° N, 43.1300° E | K79: NA | L79: An ISIL training camp southeast of Mosul | M79: Strikes were conducted under authority to protect U.S. personnel and facilities, support humanitarian efforts, and assist Iraqi forces in their offensive against ISIL terrorists. | N79: Destroyed 1 x ISIL armed vehicle, 2 x ISIL-occupied buildings and 1 x large ISIL ground unit. | O79: 1 | P79: 1 | Q79: NA | R79: NA | S79: 2 | T79: 2 | U79: 1 | V79: 1 | W79: NA | X79: NA | Y79: 1 | Z79: 1 | AA79: NA | AB79: NA | AC79: NA | AD79: NA | AE79: NA | AF79: NA | AG79: http://www.centcom.mil/en/news/articles/sept.-18-u.s.-military-conducts-airstrikes-against-isil-in-iraq
A80: 18/09/2014 - 19/09/2014 | B80: US | C80: 1 | D80: 1 | E80: 1 | F80: 166 | G80: NA | H80: US fighter aircraft | I80: Southeast of Baghdad, Iraq | J80: Baghdad: 33.3250° N, 44.4220° E | K80: NA | L80: ISIL resupply boat on Euphrates River | M80: Strikes were conducted as part of the President's comprehensive strategy to degrade and ultimately destroy ISIL. | N80: Destroyed 1 x boat on the Euphrates River | O80: NA | P80: NA | Q80: NA | R80: NA | S80: NA | T80: NA | U80: 1 | V80: 1 | W80: NA | X80: NA | Y80: NA | Z80: NA | AA80: NA | AB80: NA | AC80: NA | AD80: NA | AE80: NA | AF80: NA | AG80: http://www.centcom.mil/en/news/articles/sept.-19-u.s.-military-conducts-airstrikes-against-isil-in-iraq
A81: 18/09/2014 - 19/09/2014 | B81: US | C81: 1 | D81: 1 | E81: 1 | F81: 167 | G81: NA | H81: US fighter aircraft | I81: Southwest of Baghdad | J81: Baghdad: 33.3250° N, 44.4220° E | K81: NA | L81: ISIL ground unit near Baghdad | M81: Strikes were conducted as part of the President's comprehensive strategy to degrade and ultimately destroy ISIL. | N81: Struck 1 x small ISIL ground unit | O81: NA | P81: NA | Q81: NA | R81: NA | S81: NA | T81: NA | U81: NA | V81: NA | W81: NA | X81: NA | Y81: 1 | Z81: 1 | AA81: NA | AB81: NA | AC81: NA | AD81: NA | AE81: NA | AF81: NA | AG81: http://www.centcom.mil/en/news/articles/sept.-19-u.s.-military-conducts-airstrikes-against-isil-in-iraq
A82: 2014-09-22 | B82: US | C82: 4 | D82: 4 | E82: 4 | F82: 171 | G82: NA | H82: Mix of US attack, fighter and remotely piloted aircraft | I82: West-southwest of Kirkuk | J82: Kirkuk: 35.4667° N, 44.3167° E | K82: NA | L82: ISIL strongholds near Kirkuk | M82: Strikes were conducted as part of the President's comprehensive strategy to degrade and ultimately destroy ISIL. | N82: Destroyed 2 x ISIL vehicles, 1 x ISIL tank, and damaged 1 x ISIL Humvee | O82: NA | P82: NA | Q82: NA | R82: NA | S82: NA | T82: NA | U82: 4 | V82: 4 | W82: NA | X82: NA | Y82: NA | Z82: NA | AA82: NA | AB82: NA | AC82: NA | AD82: NA | AE82: NA | AF82: NA | AG82: http://www.centcom.mil/en/news/articles/sept.-22-u.s.-military-conducts-airstrikes-against-isil-in-iraq
A83: 22/09/2014 - 23/09/2014 | B83: Coalition: US, Bahrain, Jordan, Saudi Arabia,Qatar & UAE | C83: 1 | D83: ≤10 | E83: 14 | F83: =F82+E83 -> 185 | G83: Overnight | H83: A mix of coalition fighter, bomber, remotely piloted aircraft and Tomahawk Land Attack Missiles | I83: Al Tabqah, near Ar Raqqah | J83: Al Tabqah: 35.8367° N, 38.5481° E | K83: https://www.youtube.com/watch?v=JxelVX5i_QM&list=UUNEEHeS9Y2yFVLbWGeHhbYA&index=7 | L83: ISIL strongholds in the vicinity of Ar Raqqah, Dayr az Zawr, Al Hasakah, and Abu Kamal | M83: Strikes were conducted as part of the President's comprehensive strategy to degrade and ultimately destroy ISIL. | N83: Destroyed or damaged multiple ISIL targets including: ISIL fighters, training compounds, headquarters and command and control facilities, storage facilities, a finance center, supply trucks and armed vehicles. | O83: > 2 | P83: NA | Q83: NA | R83: NA | S83: > 7 | T83: NA | U83: > 4 | V83: NA | W83: NA | X83: NA | Y83: NA | Z83: NA | AA83: NA | AB83: NA | AC83: NA | AD83: NA | AE83: > 2 | AF83: NA | AG83: http://www.centcom.mil/en/news/articles/sept.-23-u.s.-military-partner-nations-conduct-airstrikes-against-isil-in-s
H84: A mix of coalition fighter, bomber, remotely piloted aircraft and Tomahawk Land Attack Missiles | I84: Tall Al Qitar near Ar Raqqah | J84: Tall al Qitar: 36.388889 ° N,38.155556 ° E | K84: https://www.youtube.com/watch?v=0bpakeG9x7o&index=11&list=UUNEEHeS9Y2yFVLbWGeHhbYA | AG84: http://www.centcom.mil/en/news/articles/sept.-23-u.s.-military-partner-nations-conduct-airstrikes-against-isil-in-s
A85: 22/09/2014 - 23/09/2015 | B85: Coalition: US, Bahrain, Jordan, Saudi Arabia,Qatar & UAE | C85: 1 | D85: ≤10 | H85: A mix of coalition fighter, bomber, remotely piloted aircraft and Tomahawk Land Attack Missiles | I85: Dayr az Zawr | J85: Dayr az Zawr: 35.3333° N, 40.1500° E | L85: ISIL strongholds in the vicinity of Ar Raqqah, Dayr az Zawr, Al Hasakah, and Abu Kamal | M85: Strikes were conducted as part of the President's comprehensive strategy to degrade and ultimately destroy ISIL. | AG85: http://www.centcom.mil/en/news/articles/sept.-23-u.s.-military-partner-nations-conduct-airstrikes-against-isil-in-s
A86: 22/09/2014 - 23/09/2015 | B86: Coalition: US, Bahrain, Jordan, Saudi Arabia,Qatar & UAE | C86: 1 | D86: ≤10 | H86: A mix of coalition fighter, bomber, remotely piloted aircraft and Tomahawk Land Attack Missiles | I86: Al Hasakah | J86: Al Hasakah: 36.5000° N, 40.9000° E | L86: ISIL strongholds in the vicinity of Ar Raqqah, Dayr az Zawr, Al Hasakah, and Abu Kamal | M86: Strikes were conducted as part of the President's comprehensive strategy to degrade and ultimately destroy ISIL. | AG86: http://www.centcom.mil/en/news/articles/sept.-23-u.s.-military-partner-nations-conduct-airstrikes-against-isil-in-s
A87: 22/09/2014 - 23/09/2015 | B87: Coalition: US, Bahrain, Jordan, Saudi Arabia,Qatar & UAE | C87: 1 | D87: ≤10 | H87: A mix of coalition fighter, bomber, remotely piloted aircraft and Tomahawk Land Attack Missiles | I87: Abu Kamal | J87: Abu Kamal: 34.4536° N, 40.9367° E | K87: https://www.youtube.com/watch?v=U5tyRw8INSs&list=UUNEEHeS9Y2yFVLbWGeHhbYA&index=12 | L87: ISIL strongholds in the vicinity of Ar Raqqah, Dayr az Zawr, Al Hasakah, and Abu Kamal | M87: Strikes were conducted as part of the President's comprehensive strategy to degrade and ultimately destroy ISIL. | AG87: http://www.centcom.mil/en/news/articles/sept.-23-u.s.-military-partner-nations-conduct-airstrikes-against-isil-in-s
A88: 22/09/2014 - 23/09/2015 | B88: Coalition: US, Bahrain, Jordan, Saudi Arabia,Qatar & UAE | C88: 1 | D88: ≤10 | H88: A mix of coalition fighter, bomber, remotely piloted aircraft and Tomahawk Land Attack Missiles | I88: Abu Kamal | J88: Abu Kamal: 34.4536° N, 40.9367° E | K88: https://www.youtube.com/watch?v=nShvy9S4pg4&index=9&list=UUNEEHeS9Y2yFVLbWGeHhbYA | L88: ISIL strongholds in the vicinity of Ar Raqqah, Dayr az Zawr, Al Hasakah, and Abu Kamal | M88: Strikes were conducted as part of the President's comprehensive strategy to degrade and ultimately destroy ISIL. | AG88: http://www.centcom.mil/en/news/articles/sept.-23-u.s.-military-partner-nations-conduct-airstrikes-against-isil-in-s
A89: 2014-09-22 | B89: US | C89: 4 | D89: 4 | E89: 4 | F89: =F83+E89 -> 189 | G89: NA | H89: US attack aircraft | I89: Southwest of Kirkuk | J89: Kirkuk: 35.4667° N, 44.3167° E | K89: NA | L89: ISIL strongholds near Kirkuk | M89: Strikes were conducted as part of the President's comprehensive strategy to degrade and ultimately destroy ISIL. | N89: Destroyed 2 x ISIL Humvees, 1 x ISIL armed vehicle and 1 x ISIL fighting position. | O89: NA | P89: NA | Q89: NA | R89: NA | S89: NA | T89: NA | U89: 3 | V89: 3 | W89: NA | X89: NA | Y89: 1 | Z89: 1 | AA89: NA | AB89: NA | AC89: NA | AD89: NA | AE89: NA | AF89: NA | AG89: http://www.centcom.mil/en/news/articles/sept.-23-u.s.-military-partner-nations-conduct-airstrikes-against-isil-in-s
A90: 2014-09-22 | B90: US | C90: 8 | D90: 8 | E90: 8 | F90: =F89+E90 -> 197 | G90: NA | H90: NA | I90: West of Aleppo | J90: Aleppo: 36.2167° N, 37.1667° E | K90: NA | L90: Khorasan Group training camps, an explosives and munitions production facility, a communication building and command and control facilities. | M90: Disrupt the imminent attack plotting against the United States and Western interests conducted by a network of seasoned al-Qa'ida's Khorasan Group. | N90: Training camps, 1 x explosives and munitions production facility, 1 x communication building and command and control facilities. | O90: NA | P90: NA | Q90: NA | R90: NA | S90: NA | T90: NA | U90: NA | V90: NA | W90: NA | X90: NA | Y90: NA | Z90: NA | AA90: NA | AB90: NA | AC90: >5 | AD90: NA | AE90: NA | AF90: NA | AG90: http://www.centcom.mil/en/news/articles/sept.-23-u.s.-military-partner-nations-conduct-airstrikes-against-isil-in-s
A91: 22/09/2014 - 23/09/2014 | B91: US | C91: 2 | D91: 2 | E91: 2 | F91: =F90+E91 -> 199 | G91: Overnight | H91: Mix of US bomber and remotely piloted aircraft | I91: Southwest of Dayr Az Zawr, Syria | J91: Dayr az Zawr: 35.3333° N, 40.1500° E | K91: NA | L91: ISIL strongholds southwest of Dayr Az Zawr, Syria | M91: Strikes were conducted as part of the President's comprehensive strategy to degrade and ultimately destroy ISIL. | N91: 1 x damaged ISIL armed vehicle and 1 x destroyed ISIL armed vehicle | O91: NA | P91: NA | Q91: NA | R91: NA | S91: NA | T91: NA | U91: 2 | V91: 2 | W91: NA | X91: NA | Y91: NA | Z91: NA | AA91: NA | AB91: NA | AC91: NA | AD91: NA | AE91: NA | AF91: NA | AG91: http://www.centcom.mil/en/news/articles/sept.-23-u.s.-military-conducts-airstrikes-against-isil-in-iraq-and-syria
A92: 22/09/2014 - 23/09/2014 | B92: US | C92: 1 | D92: 1 | E92: 1 | F92: =+F91+E92 -> 200 | H92: Mix of US bomber and remotely piloted aircraft | I92: Northwest of Baghdad, Iraq | J92: Baghdad: 33.3250° N, 44.4220° E | K92: NA | L92: ISIL strongholds in Northwest of Baghdad, Iraq | M92: Strikes were conducted as part of the President's comprehensive strategy to degrade and ultimately destroy ISIL. | N92: Destroyed 1 x ISIL armed vehicle | O92: NA | P92: NA | Q92: NA | R92: NA | S92: NA | T92: NA | U92: 1 | V92: 1 | W92: NA | X92: NA | Y92: NA | Z92: NA | AA92: NA | AB92: NA | AC92: NA | AD92: NA | AE92: NA | AF92: NA | AG92: http://www.centcom.mil/en/news/articles/sept.-23-u.s.-military-conducts-airstrikes-against-isil-in-iraq-and-syria
A93: 22/09/2014 - 23/09/2014 | B93: US | C93: 2 | D93: 2 | E93: 2 | F93: =+F92+E93 -> 202 | G93: NA | H93: Mix of US attack, bomber and fighter aircraft | I93: West of Baghdad, Iraq | J93: Baghdad: 33.3250° N, 44.4220° E | K93: NA | L93: ISIL strongholds west of Baghdad, Iraq | M93: Strikes were conducted as part of the President's comprehensive strategy to degrade and ultimately destroy ISIL. | N93: Destroyed 2 x ISIL armed vehicles and 1 x weapons cache | O93: NA | P93: NA | Q93: NA | R93: NA | S93: NA | T93: NA | U93: 2 | V93: 2 | W93: 1 | X93: 1 | Y93: NA | Z93: NA | AA93: NA | AB93: NA | AC93: NA | AD93: NA | AE93: NA | AF93: NA | AG93: http://www.centcom.mil/en/news/articles/sept.-24-u.s.-military-conducts-airstrikes-against-isil-in-iraq-and-syria
A94: 23/09/2014 - 24/09/2014 | B94: US | C94: 2 | D94: 2 | E94: 2 | F94: 204 | H94: Mix of US attack, bomber and fighter aircraft | I94: Southeast of Erbil, Iraq | J94: Erbil: 36.1911° N, 44.0092° E | K94: NA | L94: ISIL strongholds southeast of Erbil, Iraq | M94: Strikes were conducted as part of the President's comprehensive strategy to degrade and ultimately destroy ISIL. | N94: Destroyed ISIL fighting positions | O94: NA | P94: NA | Q94: NA | R94: NA | S94: NA | T94: NA | U94: NA | V94: NA | W94: NA | X94: NA | Y94: >2 | Z94: NA | AA94: NA | AB94: NA | AC94: NA | AD94: NA | AE94: NA | AF94: NA | AG94: http://www.centcom.mil/en/news/articles/sept.-24-u.s.-military-conducts-airstrikes-against-isil-in-iraq-and-syria
A95: 23/09/2014 - 24/09/2014 | B95: US | C95: 1 | D95: 1 | E95: 1 | F95: 205 | H95: Mix of US attack, bomber and fighter aircraft | I95: Northwest of Al Qa'im, Syria | J95: Al Qa'im: 34.3688° N, 41.0945° E | K95: NA | L95: ISIL strongholds northwest of Al Qa'im, Syria | M95: Strikes were conducted as part of the President's comprehensive strategy to degrade and ultimately destroy ISIL. | N95: Damaged 8 x ISIL vehicles | O95: NA | P95: NA | Q95: NA | R95: NA | S95: NA | T95: NA | U95: 8 | V95: 8 | W95: NA | X95: NA | Y95: NA | Z95: NA | AA95: NA | AB95: NA | AC95: NA | AD95: NA | AE95: NA | AF95: NA | AG95: http://www.centcom.mil/en/news/articles/sept.-24-u.s.-military-conducts-airstrikes-against-isil-in-iraq-and-syria
A96: 2014-09-24 | B96: US, Saudi Arabia & UAE | C96: 1 | D96: ≤10 | E96: 13 | F96: =F95+E96 -> 218 | G96: NA | H96: A mix of coalition fighter and remotely piloted aircraft | I96: Al Mayadin, Syria | J96: Al Mayadin: 35.0167° N, 40.4500° E | K96: https://www.youtube.com/watch?v=w0JOJQlLzok&list=UUNEEHeS9Y2yFVLbWGeHhbYA&index=6 | L96: 12 ISIL-controlled modular oil refineries | M96: The U.S. conducted these strikes as part of the President's comprehensive strategy to degrade and ultimately destroy ISIL. | N96: 12 x ISIL-controlled modular oil refineries | O96: NA | P96: NA | Q96: 12 | R96: 12 | S96: NA | T96: NA | U96: NA | V96: NA | W96: NA | X96: NA | Y96: NA | Z96: NA | AA96: NA | AB96: NA | AC96: NA | AD96: NA | AE96: NA | AF96: NA | AG96: http://www.centcom.mil/en/news/articles/u.s.-military-partner-nations-conduct-airstrikes-against-isil-in-syria
A97: 2014-09-24 | B97: US, Saudi Arabia & UAE | C97: 1 | D97: ≤10 | H97: A mix of coalition fighter and remotely piloted aircraft | I97: Al Hasakah, Syria | J97: Al Hasakah: 36.5000° N, 40.9000° E | K97: https://www.youtube.com/watch?v=9HZa0bdSf44&list=UUNEEHeS9Y2yFVLbWGeHhbYA&index=8 | M97: The U.S. conducted these strikes as part of the President's comprehensive strategy to degrade and ultimately destroy ISIL. | O97: NA | P97: NA | S97: NA | T97: NA | U97: NA | V97: NA | W97: NA | X97: NA | Y97: NA | Z97: NA | AA97: NA | AB97: NA | AC97: NA | AD97: NA | AE97: NA | AF97: NA | AG97: http://www.centcom.mil/en/news/articles/u.s.-military-partner-nations-conduct-airstrikes-against-isil-in-syria
A98: 2014-09-24 | B98: US, Saudi Arabia & UAE | C98: 1 | D98: ≤10 | H98: A mix of coalition fighter and remotely piloted aircraft | I98: Abu Kamal | J98: Abu Kamal: 34.4536° N, 40.9367° E | K98: NA | M98: The U.S. conducted these strikes as part of the President's comprehensive strategy to degrade and ultimately destroy ISIL. | O98: NA | P98: NA | S98: NA | T98: NA | U98: NA | V98: NA | W98: NA | X98: NA | Y98: NA | Z98: NA | AA98: NA | AB98: NA | AC98: NA | AD98: NA | AE98: NA | AF98: NA | AG98: http://www.centcom.mil/en/news/articles/u.s.-military-partner-nations-conduct-airstrikes-against-isil-in-syria
A99: 2014-09-24 | B99: US, Saudi Arabia & UAE | C99: 1 | D99: ≤10 | H99: A mix of coalition fighter and remotely piloted aircraft | I99: Dayr az Zawr, Syria | J99: Dayr az Zawr: 35.3333° N, 40.1500° E | K99: NA | L99: ISIL strongholds in Dayr Az Zawr, Syria | M99: The U.S. conducted these strikes as part of the President's comprehensive strategy to degrade and ultimately destroy ISIL. | N99: Destroyed 1 x ISIL vehicle | O99: NA | P99: NA | Q99: NA | R99: NA | S99: NA | T99: NA | U99: 1 | V99: 1 | W99: NA | X99: NA | Y99: NA | Z99: NA | AA99: NA | AB99: NA | AC99: NA | AD99: NA | AE99: NA | AF99: NA | AG99: http://www.centcom.mil/en/news/articles/u.s.-military-partner-nations-conduct-airstrikes-against-isil-in-syria
A100: 24/09/2014 -25/09/2014 | B100: US | C100: 1 | D100: 1 | E100: 1 | F100: =F96+E100 -> 219 | G100: NA | H100: Mix US of attack, bomber and fighter aircraft | I100: West of Erbil, Iraq | J100: Erbil: 36.1911° N, 44.0092° E | K100: NA | L100: ISIL strongholds in Erbil | M100: The U.S. conducted these strikes as part of the President's comprehensive strategy to degrade and ultimately destroy ISIL. | N100: struck ISIL fighters and damaged 1 x ISIL armed vehicle | O100: NA | P100: NA | Q100: NA | R100: NA | S100: NA | T100: NA | U100: 1 | V100: 1 | W100: NA | X100: NA | Y100: NA | Z100: NA | AA100: NA | AB100: NA | AC100: NA | AD100: NA | AE100: >2 | AF100: NA | AG100: http://www.centcom.mil/en/news/articles/u.s.-military-conducts-airstrikes-against-isil-in-iraq1
A101: 24/09/2014 -25/09/2014 | B101: US | C101: 5 | D101: 5 | E101: 5 | F101: =F100+E101 -> 224 | H101: Mix US of attack, bomber and fighter aircraft | I101: South of Kirkuk , Iraq | J101: Kirkuk: 35.4667° N, 44.3167° E | K101: https://www.youtube.com/watch?v=Nl2FlbNW4sU&list=UUNEEHeS9Y2yFVLbWGeHhbYA&index=3 | L101: ISIL strongholds in Kirkuk | M101: The U.S. conducted these strikes as part of the President's comprehensive strategy to degrade and ultimately destroy ISIL. | N101: struck ISIL fighters, destroyed 1x ISIL tank, 1 x ISIL vehicle and 1 x ISIL Humvee, and damaged 2 x ISIL armed vehicles. | O101: NA | P101: NA | Q101: NA | R101: NA | S101: NA | T101: NA | U101: 5 | V101: 5 | W101: NA | X101: NA | Y101: NA | Z101: NA | AA101: NA | AB101: NA | AC101: NA | AD101: NA | AE101: >2 | AF101: NA | AG101: http://www.centcom.mil/en/news/articles/u.s.-military-conducts-airstrikes-against-isil-in-iraq2
A102: 24/09/2014 -25/09/2014 | B102: US | C102: 5 | D102: 5 | E102: 5 | F102: 229 | H102: Mix US of attack, bomber and fighter aircraft | I102: West of Baghdad, Iraq | J102: Baghdad: 33.3250° N, 44.4220° E | K102: NA | L102: ISIL strongholds near Baghdad | M102: The U.S. conducted these strikes as part of the President's comprehensive strategy to degrade and ultimately destroy ISIL. | N102: Destroyed 1 x ISIL Humvee, 4 x checkpoints, 1 x fighting position, 2 x guard towers, and 1 x command post. | O102: NA | P102: NA | Q102: NA | R102: NA | S102: 3 | T102: 3 | U102: 1 | V102: 1 | W102: NA | X102: NA | Y102: 1 | Z102: 1 | AA102: 4 | AB102: 4 | AC102: NA | AD102: NA | AE102: NA | AF102: NA | AG102: http://www.centcom.mil/en/news/articles/u.s.-military-conducts-airstrikes-against-isil-in-iraq3
A103: 25/09/2014 -26/09/2014 | B103: US | C103: 5 | D103: 5 | E103: 5 | F103: 234 | G103: NA | H103: Mix of US fighter, attack and remotely piloted aircraft | I103: South and southwest of Kirkuk , Iraq | J103: Kirkuk: 35.4667° N, 44.3167° E | K103: NA | L103: ISIL strongholds in Kirkuk | M103: The U.S. conducted these strikes as part of the President's comprehensive strategy to degrade and ultimately destroy ISIL. | N103: Destroyed 3 x ISIL Humvees and 1 x ISIL vehicle, disabled 2 x ISIL armed vehicles and damaged 1 x ISIL mine-resistant ambush protected vehicle. | O103: NA | P103: NA | Q103: NA | R103: NA | S103: NA | T103: NA | U103: 7 | V103: 7 | W103: NA | X103: NA | Y103: NA | Z103: NA | AA103: NA | AB103: NA | AC103: NA | AD103: NA | AE103: NA | AF103: NA | AG103: http://www.centcom.mil/en/news/articles/sept.-26-u.s.-military-conducts-airstrikes-against-isil-in-iraq-and-syria
A104: 25/09/2014 -26/09/2014 | B104: US | C104: 1 | D104: 1 | E104: 1 | F104: 235 | H104: Mix of US fighter, attack and remotely piloted aircraft | I104: West of Baghdad, Iraq | J104: Baghdad: 33.3250° N, 44.4220° E | K104: NA | L104: ISIL strongholds near Baghdad | M104: The U.S. conducted these strikes as part of the President's comprehensive strategy to degrade and ultimately destroy ISIL. | N104: Destroyed 1 x ISIL guard shack, 1 x armed vehicle and 1 x bunker | O104: NA | P104: NA | Q104: NA | R104: NA | S104: 2 | T104: 2 | U104: 1 | V104: 1 | W104: NA | X104: NA | Y104: NA | Z104: NA | AA104: NA | AB104: NA | AC104: NA | AD104: NA | AE104: NA | AF104: NA | AG104: http://www.centcom.mil/en/news/articles/sept.-26-u.s.-military-conducts-airstrikes-against-isil-in-iraq-and-syria
A105: 25/09/2014 -26/09/2014 | B105: US | C105: 1 | D105: 1 | E105: 1 | F105: 236 | H105: Mix of US fighter, attack and remotely piloted aircraft | I105: Near Al Qa'im, | J105: Al Qa'im: 34.3688° N, 41.0945° E | K105: NA | L105: ISIL strongholds near Al Qa'im | M105: The U.S. conducted these strikes as part of the President's comprehensive strategy to degrade and ultimately destroy ISIL. | N105: Destroyed 4 x ISIL armed vehicles, 1 x command and control node and 1 x checkpoint | O105: NA | P105: NA | Q105: NA | R105: NA | S105: NA | T105: NA | U105: 4 | V105: 4 | W105: NA | X105: NA | Y105: 1 | Z105: 1 | AA105: 1 | AB105: 1 | AC105: NA | AD105: NA | AE105: NA | AF105: NA | AG105: http://www.centcom.mil/en/news/articles/sept.-26-u.s.-military-conducts-airstrikes-against-isil-in-iraq-and-syria
A106: 25/09/2014 -26/09/2014 | B106: US | C106: 3 | D106: 3 | E106: 3 | F106: 239 | H106: Mix of US fighter, attack and remotely piloted aircraft | I106: South and southeast of Dayr Az Zawr , Syria | J106: Dayr az Zawr: 35.3333° N, 40.1500° E | K106: NA | L106: ISIL strongholds in Dayr Az Zawr, Syria | M106: The U.S. conducted these strikes as part of the President's comprehensive strategy to degrade and ultimately destroy ISIL. | N106: Destroyed 4 x ISIL tanks and damaged 1 x ISIL tank | O106: NA | P106: NA | Q106: NA | R106: NA | S106: NA | T106: NA | U106: 5 | V106: 5 | W106: NA | X106: NA | Y106: NA | Z106: NA | AA106: NA | AB106: NA | AC106: NA | AD106: NA | AE106: NA | AF106: NA | AG106: http://www.centcom.mil/en/news/articles/sept.-26-u.s.-military-conducts-airstrikes-against-isil-in-iraq-and-syria
A107: 26/09/2014 - 27/09/2014 | B107: US, Saudi Arabia, Jordan & UAE | C107: 1 | D107: ≤3 | E107: 7 | F107: =F106+E107 -> 246 | G107: NA | H107: Mix of U.S. and partner nation fighter and remotely piloted aircraft | I107: South of Al Hasakah, Syria | J107: Al Hasakah: 36.5000° N, 40.9000° E | K107: https://www.youtube.com/watch?v=gpWHyv5cECA&index=1&list=UUNEEHeS9Y2yFVLbWGeHhbYA | L107: Al Hasakah Military Garrison in South Milibya, Syria | M107: The strikes were conducted as part of the President's comprehensive strategy to degrade and ultimately destroy ISIL. | N107: 1 x ISIL vehicle was destroyed | O107: NA | P107: NA | Q107: NA | R107: NA | S107: NA | T107: NA | U107: 1 | V107: 1 | W107: NA | X107: NA | Y107: NA | Z107: NA | AA107: NA | AB107: NA | AC107: NA | AD107: NA | AE107: NA | AF107: NA | AG107: http://www.centcom.mil/en/news/articles/sept.-27-u.s.-military-partner-nations-conduct-airstrikes-against-isil
A108: 26/09/2014 - 27/09/2014 | B108: US, Saudi Arabia, Jordan & UAE | C108: 1 | D108: ≤3 | H108: Mix of U.S. and partner nation fighter and remotely piloted aircraft | I108: Near Al Hasakah, Syria | J108: Al Hasakah: 36.5000° N, 40.9000° E | K108: NA | L108: ISIL strongholds near Al Hasakah, Syria | M108: The strikes were conducted as part of the President's comprehensive strategy to degrade and ultimately destroy ISIL. | N108: Destroyed several buildings that were part of an ISIL garrison | O108: NA | P108: NA | Q108: NA | R108: NA | S108: > 2 | T108: NA | U108: NA | V108: NA | W108: NA | X108: NA | Y108: NA | Z108: NA | AA108: NA | AB108: NA | AC108: NA | AD108: NA | AE108: NA | AF108: NA | AG108: http://www.centcom.mil/en/news/articles/sept.-27-u.s.-military-partner-nations-conduct-airstrikes-against-isil
A109: 26/09/2014 - 27/09/2014 | B109: US, Saudi Arabia, Jordan & UAE | C109: 1 | D109: ≤3 | H109: Mix of U.S. and partner nation fighter and remotely piloted aircraft | I109: Near Manbij, Syria | J109: Manbij: 36.5333° N, 37.9500° E | K109: NA | L109: ISIL strongholds near Manbij, Syria | M109: The strikes were conducted as part of the President's comprehensive strategy to degrade and ultimately destroy ISIL. | N109: Damaged 1 x ISIL command and control facility | O109: NA | P109: NA | Q109: NA | R109: NA | S109: 1 | T109: 1 | U109: NA | V109: NA | W109: NA | X109: NA | Y109: NA | Z109: NA | AA109: NA | AB109: NA | AC109: NA | AD109: NA | AE109: NA | AF109: NA | AG109: http://www.centcom.mil/en/news/articles/sept.-27-u.s.-military-partner-nations-conduct-airstrikes-against-isil
A110: 26/09/2014 - 27/09/2014 | B110: US, Saudi Arabia, Jordan & UAE | C110: 1 | D110: ≤3 | H110: Mix of U.S. and partner nation fighter and remotely piloted aircraft | I110: Kobani border crossing, Ayn al-Arab, Syria | J110: Kobani, Ayn al-Arab: 36.889722° N, 38.355556° E | K110: https://www.youtube.com/watch?v=d1kMXX9B518&list=UUNEEHeS9Y2yFVLbWGeHhbYA&index=5 | L110: ISIL strongholds at Kobani border crossing, Ayn al-Arab, Syria | M110: The strikes were conducted as part of the President's comprehensive strategy to degrade and ultimately destroy ISIL. | N110: Destroyed 1 x ISIL building and 2 x armed vehicles | O110: NA | P110: NA | Q110: NA | R110: NA | S110: 1 | T110: 1 | U110: 2 | V110: 2 | W110: NA | X110: NA | Y110: NA | Z110: NA | AA110: NA | AB110: NA | AC110: NA | AD110: NA | AE110: NA | AF110: NA | AG110: http://www.centcom.mil/en/news/articles/sept.-27-u.s.-military-partner-nations-conduct-airstrikes-against-isil
A111: 26/09/2014 - 27/09/2014 | B111: US, Saudi Arabia, Jordan & UAE | C111: 1 | D111: ≤3 | H111: Mix of U.S. and partner nation fighter and remotely piloted aircraft | I111: Near Ar Raqqah | J111: Ar Raqqah: 35.9500° N, 39.0167° E | K111: NA | L111: ISIL strongholds near Ar Raqqah | M111: The strikes were conducted as part of the President's comprehensive strategy to degrade and ultimately destroy ISIL. | N111: Damaged 1 x ISIL held airfield, 1 x ISIL garrison and 1 x ISIL training camp | O111: 1 | P111: 1 | Q111: NA | R111: NA | S111: 2 | T111: 2 | U111: NA | V111: NA | W111: NA | X111: NA | Y111: NA | Z111: NA | AA111: NA | AB111: NA | AC111: NA | AD111: NA | AE111: NA | AF111: NA | AG111: http://www.centcom.mil/en/news/articles/sept.-27-u.s.-military-partner-nations-conduct-airstrikes-against-isil
A112: 26/09/2014 - 27/09/2014 | B112: US | C112: 3 | D112: 3 | E112: 3 | F112: =F107+E112 -> 249 | G112: NA | H112: US attack aircraft | I112: Southwest of Erbil | J112: Erbil: 36.1911° N, 44.0092° E | K112: NA | L112: ISIL strongholds southwest of Erbil | M112: The strikes were conducted as part of the President's comprehensive strategy to degrade and ultimately destroy ISIL. | N112: Destroyed 4 xISIL armed vehicles and 1 x ISIL fighting position | O112: NA | P112: NA | Q112: NA | R112: NA | S112: NA | T112: NA | U112: 4 | V112: 4 | W112: NA | X112: NA | Y112: 1 | Z112: 1 | AA112: NA | AB112: NA | AC112: NA | AD112: NA | AE112: NA | AF112: NA | AG112: http://www.centcom.mil/en/news/articles/sept.-27-u.s.-military-partner-nations-conduct-airstrikes-against-isil
A113: 27/09/2014 -28/09/2014 | B113: US, Saudi Arabia & UAE | C113: 5 | D113: 5 | E113: 5 | F113: =F112+E113 -> 254 | H113: Mix of U.S. and partner nation attack, fighter and remotely piloted aircraft | I113: North of Ar Raqqah | J113: Ar Raqqah: 35.9500° N, 39.0167° E | K113: NA | L113: Four ISIL-held modular refineries and an ISIL command and control node | M113: The strikes were conducted as part of the President's comprehensive strategy to degrade and ultimately destroy ISIL. | N113: 4 x ISIL-held modular refineries and 1 x ISIL command and control node | O113: NA | P113: NA | Q113: 4 | R113: 4 | S113: NA | T113: NA | U113: NA | V113: NA | W113: NA | X113: NA | Y113: 1 | Z113: 1 | AA113: NA | AB113: NA | AC113: NA | AD113: NA | AE113: NA | AF113: NA | AG113: http://www.centcom.mil/en/news/articles/sept.-28-u.s.-military-partner-nations-conduct-airstrikes-against-isil-in-s
A114: 27/09/2014 -28/09/2014 | B114: US | C114: 1 | D114: 1 | E114: 1 | F114: 255 | G114: NA | H114: Mix of US fighter and remotely piloted | I114: Near Baghdad | J114: Baghdad: 33.3250° N, 44.4220° E | K114: NA | L114: ISIL strongholds near Baghdad | M114: The strikes were conducted as part of the President's comprehensive strategy to degrade and ultimately destroy ISIL. | N114: Destroyed 1 x ISIL safe house and damaged 1 x ISIL checkpoint | O114: NA | P114: NA | Q114: NA | R114: NA | S114: 1 | T114: 1 | U114: NA | V114: NA | W114: NA | X114: NA | Y114: NA | Z114: NA | AA114: 1 | AB114: 1 | AC114: NA | AD114: NA | AE114: NA | AF114: NA | AG114: http://www.centcom.mil/en/news/articles/sept.-28-u.s.-military-partner-nations-conduct-airstrikes-against-isil-in-s
A115: 27/09/2014 -28/09/2014 | B115: US, Saudi Arabia & UAE | C115: 1 | D115: 1 | E115: 1 | F115: 256 | G115: NA | H115: Mix of U.S. and partner nation attack, fighter and remotely piloted aircraft | I115: Northeast Syria | J115: Al Hasakah: 36.5000° N, 40.9000° E | K115: NA | L115: ISIL strongholds in northeastern Syria | M115: The strikes were conducted as part of the President's comprehensive strategy to degrade and ultimately destroy ISIL. | N115: Destroyed 3x ISIL armed vehicles and 1 x ISIL Humvee | O115: NA | P115: NA | Q115: NA | R115: NA | S115: NA | T115: NA | U115: 4 | V115: 4 | W115: NA | X115: NA | Y115: NA | Z115: NA | AA115: NA | AB115: NA | AC115: NA | AD115: NA | AE115: NA | AF115: NA | AG115: http://www.centcom.mil/en/news/articles/sept.-28-u.s.-military-partner-nations-conduct-airstrikes-against-isil-in-s
A116: 27/09/2014 -28/09/2014 | C116: 2 | D116: 2 | E116: 2 | F116: 258 | G116: NA | H116: Mix of U.S. and partner nation attack, fighter and remotely piloted aircraft | I116: Near Dayr Az Zawr , Syria | J116: Dayr az Zawr: 35.3333° N, 40.1500° E | K116: NA | L116: ISIL strongholds in Dayr Az Zawr, Syria | M116: The strikes were conducted as part of the President's comprehensive strategy to degrade and ultimately destroy ISIL. | N116: Destroyed 1 x ISIL tank and damaged 1 x ISIL tank | O116: NA | P116: NA | Q116: NA | R116: NA | S116: NA | T116: NA | U116: 2 | V116: 2 | W116: NA | X116: NA | Y116: NA | Z116: NA | AA116: NA | AB116: NA | AC116: NA | AD116: NA | AE116: NA | AF116: NA | AG116: http://www.centcom.mil/en/news/articles/sept.-28-u.s.-military-partner-nations-conduct-airstrikes-against-isil-in-s
A117: 27/09/2014 -28/09/2014 | B117: US | C117: 3 | D117: 3 | E117: 3 | F117: 261 | G117: NA | H117: Mix of US fighter and remotely piloted | I117: Near Fallujah | J117: Fallujah: 33.3500° N, 43.7833° E | K117: NA | L117: ISIL strongholds near Fallujah | M117: The strikes were conducted as part of the President's comprehensive strategy to degrade and ultimately destroy ISIL. | N117: Destroyed 2 x ISIL checkpoints and 1 x ISIL transport vehicle | O117: NA | P117: NA | Q117: NA | R117: NA | S117: NA | T117: NA | U117: 1 | V117: 1 | W117: NA | X117: NA | Y117: NA | Z117: NA | AA117: 2 | AB117: 2 | AC117: NA | AD117: NA | AE117: NA | AF117: NA | AG117: http://www.centcom.mil/en/news/articles/sept.-28-u.s.-military-partner-nations-conduct-airstrikes-against-isil-in-s
A118: 28/09/2014 - 29/09/2014 | B118: US, Jordan & UAE | C118: 2 | D118: 2 | E118: 2 | F118: 263 | G118: NA | H118: Mix of US and partner nation fighter and remotely piloted aircraft | I118: Near Dayr ar Zawr, Syria | J118: Dayr az Zawr: 35.3333° N, 40.1500° E | K118: NA | L118: ISIL strongholds in Dayr Az Zawr, Syria | M118: The strikes were conducted as part of the President's comprehensive strategy to degrade and ultimately destroy ISIL. | N118: Destroyed 1 x ISIL armed vehicle while another destroyed 1 x ISIL anti-aircraft artillery transport vehicle | O118: NA | P118: NA | Q118: NA | R118: NA | S118: NA | T118: NA | U118: 2 | V118: 2 | W118: NA | X118: NA | Y118: NA | Z118: NA | AA118: NA | AB118: NA | AC118: NA | AD118: NA | AE118: NA | AF118: NA | AG118: http://www.centcom.mil/en/news/articles/sept.-29-u.s.-military-partner-nations-conduct-airstrikes-against-isil-in-s
A119: 28/09/2014 - 29/09/2014 | B119: US, Jordan & UAE | C119: 2 | D119: 2 | E119: 2 | F119: 265 | G119: NA | H119: Mix of U.S. and partner nation fighter and remotely piloted aircraft | I119: Northwest Syria near Aleppo | J119: Aleppo: 36.2167° N, 37.1667° E | K119: NA | L119: An ISIL compound and an ISIL-held airfield in northwest Syria near Aleppo. | M119: The strikes were conducted as part of the President's comprehensive strategy to degrade and ultimately destroy ISIL. | N119: 1 x ISIL compound and 1 x ISIL-held airfield | O119: NA | P119: NA | Q119: NA | R119: NA | S119: 2 | T119: 2 | U119: NA | V119: NA | W119: NA | X119: NA | Y119: NA | Z119: NA | AA119: NA | AB119: NA | AC119: NA | AD119: NA | AE119: NA | AF119: NA | AG119: http://www.centcom.mil/en/news/articles/sept.-29-u.s.-military-partner-nations-conduct-airstrikes-against-isil-in-s
A120: 28/09/2014 - 29/09/2014 | B120: US, Jordan & UAE | C120: 2 | D120: 2 | E120: 2 | F120: 267 | G120: NA | H120: Mix of U.S. and partner nation fighter and remotely piloted aircraft | I120: Near Ar Raqqah | J120: Ar Raqqah: 35.9500° N, 39.0167° E | K120: NA | L120: ISIL compounds near Ar Raqqah | M120: The strikes were conducted as part of the President's comprehensive strategy to degrade and ultimately destroy ISIL. | N120: ISIL compounds near Ar Raqqah | O120: NA | P120: NA | Q120: NA | R120: NA | S120: ≥2 | T120: NA | U120: NA | V120: NA | W120: NA | X120: NA | Y120: NA | Z120: NA | AA120: NA | AB120: NA | AC120: NA | AD120: NA | AE120: NA | AF120: NA | AG120: http://www.centcom.mil/en/news/articles/sept.-29-u.s.-military-partner-nations-conduct-airstrikes-against-isil-in-s
A121: 28/09/2014 - 29/09/2014 | B121: US, Jordan & UAE | C121: 2 | D121: 2 | E121: 2 | F121: 269 | G121: NA | H121: Mix of U.S. and partner nation fighter and remotely piloted aircraft | I121: Near Manbij, Syria | J121: Manbij: 36.5333° N, 37.9500° E | K121: NA | L121: An ISIL training camp and ISIL vehicles within a vehicle staging area adjacent to an ISIL-held grain storage facility near Manbij | M121: The strikes were conducted as part of the President's comprehensive strategy to degrade and ultimately destroy ISIL. | N121: struck 1 x ISIL training camp and ISIL vehicles | O121: 1 | P121: 1 | Q121: NA | R121: NA | S121: NA | T121: NA | U121: ≥2 | V121: NA | W121: NA | X121: NA | Y121: NA | Z121: NA | AA121: NA | AB121: NA | AC121: NA | AD121: NA | AE121: NA | AF121: NA | AG121: http://www.centcom.mil/en/news/articles/sept.-29-u.s.-military-partner-nations-conduct-airstrikes-against-isil-in-s
A122: 28/09/2014 - 29/09/2014 | B122: US | C122: 1 | D122: 1 | E122: 1 | F122: 270 | G122: NA | H122: Mix of US attack and remotely piloted aircraft | I122: Near Kirkuk, Iraq | J122: Kirkuk: 35.4667° N, 44.3167° E | K122: NA | L122: ISIL strongholds in Iraq | M122: The strikes were conducted as part of the President's comprehensive strategy to degrade and ultimately destroy ISIL. | N122: Destroyed 2 x ISIL vehicles | O122: NA | P122: NA | Q122: NA | R122: NA | S122: NA | T122: NA | U122: 2 | V122: 2 | W122: NA | X122: NA | Y122: NA | Z122: NA | AA122: NA | AB122: NA | AC122: NA | AD122: NA | AE122: NA | AF122: NA | AG122: http://www.centcom.mil/en/news/articles/sept.-29-u.s.-military-partner-nations-conduct-airstrikes-against-isil-in-s
A123: 28/09/2014 - 29/09/2014 | B123: US | C123: 1 | D123: 1 | E123: 1 | F123: 271 | G123: NA | H123: Mix of US attack and remotely piloted aircraft | I123: Near Sinjar, Iraq | J123: Sinjar: 36.3225° N, 41.8642° E | K123: NA | L123: ISIL strongholds in Iraq | M123: The strikes were conducted as part of the President's comprehensive strategy to degrade and ultimately destroy ISIL. | N123: Destroyed 2 x ISIL armed vehicles | O123: NA | P123: NA | Q123: NA | R123: NA | S123: NA | T123: NA | U123: 2 | V123: 2 | W123: NA | X123: NA | Y123: NA | Z123: NA | AA123: NA | AB123: NA | AC123: NA | AD123: NA | AE123: NA | AF123: NA | AG123: http://www.centcom.mil/en/news/articles/sept.-29-u.s.-military-partner-nations-conduct-airstrikes-against-isil-in-s
A124: 28/09/2014 - 29/09/2014 | B124: US | C124: 1 | D124: 1 | E124: 1 | F124: 272 | G124: NA | H124: Mix of US attack and remotely piloted aircraft | I124: Northwest Iraq | J124: Sinjar: 36.3225° N, 41.8642° E | K124: NA | L124: ISIL strongholds in Iraq | M124: The strikes were conducted as part of the President's comprehensive strategy to degrade and ultimately destroy ISIL. | N124: Strike against an ISIL armed vehicle unsuccessful | O124: NA | P124: NA | Q124: NA | R124: NA | S124: NA | T124: NA | U124: 0 | V124: 0 | W124: NA | X124: NA | Y124: NA | Z124: NA | AA124: NA | AB124: NA | AC124: NA | AD124: NA | AE124: NA | AF124: NA | AG124: http://www.centcom.mil/en/news/articles/sept.-29-u.s.-military-partner-nations-conduct-airstrikes-against-isil-in-s
A125: 2014-09-29 | B125: US | C125: 1 | D125: NA | E125: 1 | F125: 273 | G125: NA | H125: NA | I125: East of Al Hasakah, Syria | J125: Al Hasakah: 36.5000° N, 40.9000° E | K125: https://www.youtube.com/watch?v=bFaBhdwchVI | L125: ISIL-held building east of Al Hasakah | M125: The strikes were conducted as part of the President's comprehensive strategy to degrade and ultimately destroy ISIL. | N125: Video shows min 1 x ISIL building destroyed. | O125: NA | P125: NA | Q125: NA | R125: NA | S125: 1 | T125: 1 | U125: NA | V125: NA | W125: NA | X125: NA | Y125: NA | Z125: NA | AA125: NA | AB125: NA | AC125: NA | AD125: NA | AE125: NA | AF125: NA | AG125: https://www.youtube.com/watch?v=bFaBhdwchVI
A126: 29/09/2014 -30/09/2014 | B126: US | C126: 2 | D126: 2 | E126: 2 | F126: 275 | G126: NA | H126: Mix of attack, fighter and remotely piloted aircraft | I126: Near Dayr ar Zawr, Syria | J126: Dayr az Zawr: 35.3333° N, 40.1500° E | K126: NA | L126: ISIL strongholds near Dayr ar Zawr, Syria | M126: The strikes were conducted as part of the President's comprehensive strategy to degrade and ultimately destroy ISIL. The destruction and degradation of ISIL targets in Syria and Iraq further limits the terrorist group's ability to lead, control, project power and conduct operations. | N126: Destroyed 1 x ISIL armored vehicle and 1 x ISIL armed vehicle | O126: NA | P126: NA | Q126: NA | R126: NA | S126: NA | T126: NA | U126: 2 | V126: 2 | W126: NA | X126: NA | Y126: NA | Z126: NA | AA126: NA | AB126: NA | AC126: NA | AD126: NA | AE126: NA | AF126: NA | AG126: http://www.centcom.mil/en/news/articles/sept.-30-u.s.-military-partner-nations-conduct-airstrikes-against-isil
A127: 29/09/2014 -30/09/2014 | B127: US | C127: 5 | D127: 5 | E127: 5 | F127: 280 | G127: NA | H127: Mix of attack, fighter and remotely piloted aircraft | I127: Northeast Syria near Sinjar | J127: Sinjar: 36.3225° N, 41.8642° E | K127: NA | L127: ISIL strongholds northeast Syria near Sinjar | M127: The strikes were conducted as part of the President's comprehensive strategy to degrade and ultimately destroy ISIL. The destruction and degradation of ISIL targets in Syria and Iraq further limits the terrorist group's ability to lead, control, project power and conduct operations. | N127: Destroyed 1 x ISIL artillery piece, 1 x ISIL tank, 3 x ISIL armed vehicles, 2 x ISIL facilities,1 x ISIL observation post and struck 4 x ISIL fighting positions | O127: NA | P127: NA | Q127: NA | R127: NA | S127: 2 | T127: 2 | U127: 4 | V127: 4 | W127: 1 | X127: 1 | Y127: 5 | Z127: 5 | AA127: NA | AB127: NA | AC127: NA | AD127: NA | AE127: NA | AF127: NA | AG127: http://www.centcom.mil/en/news/articles/sept.-30-u.s.-military-partner-nations-conduct-airstrikes-against-isil
A128: 29/09/2014 -30/09/2014 | B128: US | C128: 3 | D128: 3 | E128: 3 | F128: 283 | G128: NA | H128: Mix of attack, fighter and remotely piloted aircraft | I128: Near Mazra al Duwud, near the Syrian/Turkish border | J128: Mazra al Duwud: 36.883° N, 38.350° E | K128: NA | L128: ISIL strongholds near Mazra al Duwud | M128: The strikes were conducted as part of the President's comprehensive strategy to degrade and ultimately destroy ISIL. The destruction and degradation of ISIL targets in Syria and Iraq further limits the terrorist group's ability to lead, control, project power and conduct operations. | N128: Destroyed 1 x ISIL artillery piece, damaged another, and destroyed 2 x ISIL rocket launchers | O128: NA | P128: NA | Q128: NA | R128: NA | S128: NA | T128: NA | U128: NA | V128: NA | W128: 4 | X128: 4 | Y128: NA | Z128: NA | AA128: NA | AB128: NA | AC128: NA | AD128: NA | AE128: NA | AF128: NA | AG128: http://www.centcom.mil/en/news/articles/sept.-30-u.s.-military-partner-nations-conduct-airstrikes-against-isil
A129: 29/09/2014 -30/09/2014 | B129: US | C129: 1 | D129: 1 | E129: 1 | F129: 284 | G129: NA | H129: Mix of attack, fighter and remotely piloted aircraft | I129: Northeast of Aleppo | J129: Aleppo: 36.2167° N, 37.1667° E | K129: NA | L129: ISIL strongholds northeast of Aleppo | M129: The strikes were conducted as part of the President's comprehensive strategy to degrade and ultimately destroy ISIL. The destruction and degradation of ISIL targets in Syria and Iraq further limits the terrorist group's ability to lead, control, project power and conduct operations. | N129: Destroyed 4 x ISIL-occupied buildings | O129: NA | P129: NA | Q129: NA | R129: NA | S129: 4 | T129: 4 | U129: NA | V129: NA | W129: NA | X129: NA | Y129: NA | Z129: NA | AA129: NA | AB129: NA | AC129: NA | AD129: NA | AE129: NA | AF129: NA | AG129: http://www.centcom.mil/en/news/articles/sept.-30-u.s.-military-partner-nations-conduct-airstrikes-against-isil
A130: 29/09/2014 -30/09/2014 | B130: US | C130: 7 | D130: 7 | E130: 7 | F130: 291 | G130: NA | H130: Mix of attack, fighter and remotely piloted aircraft | I130: Northwest Iraq | J130: Sinjar: 36.3225° N, 41.8642° E | K130: NA | L130: ISIL strongholds in Iraq | M130: The strikes were conducted as part of the President's comprehensive strategy to degrade and ultimately destroy ISIL. The destruction and degradation of ISIL targets in Syria and Iraq further limits the terrorist group's ability to lead, control, project power and conduct operations. | N130: Destroyed 1 x ISIL armored vehicle, 2 x ISIL transport vehicles, and 4 x ISIL armed vehicles and damaged 1 x ISIL armed vehicle. | O130: NA | P130: NA | Q130: NA | R130: NA | S130: NA | T130: NA | U130: 8 | V130: 8 | W130: NA | X130: NA | Y130: NA | Z130: NA | AA130: NA | AB130: NA | AC130: NA | AD130: NA | AE130: NA | AF130: NA | AG130: http://www.centcom.mil/en/news/articles/sept.-30-u.s.-military-partner-nations-conduct-airstrikes-against-isil
A131: 29/09/2014 -30/09/2014 | B131: US | C131: 2 | D131: 2 | E131: 2 | F131: 293 | G131: NA | H131: Mix of attack, fighter and remotely piloted aircraft | I131: Near Mosul Dam | J131: Mosul Dam: 36.6303° N, 42.8231° E | K131: NA | L131: ISIL strongholds near Mosul Dam. | M131: The strikes were conducted as part of the President's comprehensive strategy to degrade and ultimately destroy ISIL. The destruction and degradation of ISIL targets in Syria and Iraq further limits the terrorist group's ability to lead, control, project power and conduct operations. | N131: Destroyed 1 x ISIL fighting position and 1 x ISIL armed vehicle | O131: NA | P131: NA | Q131: NA | R131: NA | S131: NA | T131: NA | U131: 1 | V131: 1 | W131: NA | X131: NA | Y131: 1 | Z131: 1 | AA131: NA | AB131: NA | AC131: NA | AD131: NA | AE131: NA | AF131: NA | AG131: http://www.centcom.mil/en/news/articles/sept.-30-u.s.-military-partner-nations-conduct-airstrikes-against-isil
A132: 29/09/2014 -30/09/2014 | B132: US | C132: 1 | D132: 1 | E132: 1 | F132: 294 | G132: NA | H132: Mix of attack, fighter and remotely piloted aircraft | I132: Northwest of Baghdad | J132: Baghdad: 33.3250° N, 44.4220° E | K132: NA | L132: ISIL strongholds near Baghdad | M132: The strikes were conducted as part of the President's comprehensive strategy to degrade and ultimately destroy ISIL. The destruction and degradation of ISIL targets in Syria and Iraq further limits the terrorist group's ability to lead, control, project power and conduct operations. | N132: Destroyed 1 x ISIL armed vehicle | O132: NA | P132: NA | Q132: NA | R132: NA | S132: NA | T132: NA | U132: 1 | V132: 1 | W132: NA | X132: NA | Y132: NA | Z132: NA | AA132: NA | AB132: NA | AC132: NA | AD132: NA | AE132: NA | AF132: NA | AG132: http://www.centcom.mil/en/news/articles/sept.-30-u.s.-military-partner-nations-conduct-airstrikes-against-isil
A133: 29/09/2014 -30/09/2014 | B133: US | C133: 1 | D133: 1 | E133: 1 | F133: 295 | G133: NA | H133: Mix of attack, fighter and remotely piloted aircraft | I133: West Fallujah | J133: Fallujah: 33.3500° N, 43.7833° E | K133: NA | L133: ISIL strongholds near Fallujah | M133: The strikes were conducted as part of the President's comprehensive strategy to degrade and ultimately destroy ISIL. The destruction and degradation of ISIL targets in Syria and Iraq further limits the terrorist group's ability to lead, control, project power and conduct operations. | N133: Struck 1 x ISIL checkpoint | O133: NA | P133: NA | Q133: NA | R133: NA | S133: NA | T133: NA | U133: NA | V133: NA | W133: NA | X133: NA | Y133: NA | Z133: NA | AA133: 1 | AB133: 1 | AC133: NA | AD133: NA | AE133: NA | AF133: NA | AG133: http://www.centcom.mil/en/news/articles/sept.-30-u.s.-military-partner-nations-conduct-airstrikes-against-isil
A134: 30/09/2014 - 01/10/2014 | B134: US | C134: 3 | D134: 3 | E134: 3 | F134: 298 | G134: NA | H134: Mix of US fighter and remotely piloted aircraft | I134: Near Kobani | J134: Kobani, Ayn al-Arab: 36.889722° N, 38.355556° E | K134: NA | L134: ISIL strongholds near Kobani | M134: The strikes were conducted as part of the President's comprehensive strategy to degrade and ultimately destroy ISIL. The destruction and degradation of ISIL targets in Syria and Iraq further limits the terrorist group's ability to lead, control, project power and conduct operations. | N134: Destroyed 1 x ISIL armed vehicle, 1 x ISIL artillery piece, 1 x ISIL tank | O134: NA | P134: NA | Q134: NA | R134: NA | S134: NA | T134: NA | U134: 2 | V134: 2 | W134: 1 | X134: 1 | Y134: NA | Z134: NA | AA134: NA | AB134: NA | AC134: NA | AD134: NA | AE134: NA | AF134: NA | AG134: http://www.centcom.mil/en/news/articles/oct.-1-u.s.-military-partner-nation-conduct-airstrikes-against-isil
A135: 30/09/2014 -01/10/2014 | B135: US & UK | C135: 3 | D135: 3 | E135: 3 | F135: 301 | G135: NA | H135: Mix of coalition fighter and remotely piloted aircraft | I135: Northwest of Mosul | J135: Mosul: 36.3400° N, 43.1300° E | K135: NA | L135: ISIL strongholds near Mosul | M135: The strikes were conducted as part of the President's comprehensive strategy to degrade and ultimately destroy ISIL. The destruction and degradation of ISIL targets in Syria and Iraq further limits the terrorist group's ability to lead, control, project power and conduct operations. | N135: Destroyed 2 x ISIL armed vehicles, 1 x ISIL occupied building, and struck 2 x ISIL fighting positions | O135: NA | P135: NA | Q135: NA | R135: NA | S135: 1 | T135: 1 | U135: 2 | V135: 2 | W135: NA | X135: NA | Y135: 2 | Z135: 2 | AA135: NA | AB135: NA | AC135: NA | AD135: NA | AE135: NA | AF135: NA | AG135: http://www.centcom.mil/en/news/articles/oct.-1-u.s.-military-partner-nation-conduct-airstrikes-against-isil
A136: 30/09/2014 -01/10/2014 | B136: US & UK | C136: 1 | D136: 1 | E136: 1 | F136: 302 | G136: NA | H136: Mix of coalition fighter and remotely piloted aircraft | I136: Near Haditha Dam | J136: Haditha Dam: 34.2069° N, 42.3550° E | K136: NA | L136: ISIL strongholds near Haditha Dam | M136: The strikes were conducted as part of the President's comprehensive strategy to degrade and ultimately destroy ISIL. The destruction and degradation of ISIL targets in Syria and Iraq further limits the terrorist group's ability to lead, control, project power and conduct operations. | N136: Destroyed 1 x ISIL armed vehicle | O136: NA | P136: NA | Q136: NA | R136: NA | S136: NA | T136: NA | U136: 1 | V136: 1 | W136: NA | X136: NA | Y136: NA | Z136: NA | AA136: NA | AB136: NA | AC136: NA | AD136: NA | AE136: NA | AF136: NA | AG136: http://www.centcom.mil/en/news/articles/oct.-1-u.s.-military-partner-nation-conduct-airstrikes-against-isil
A137: 30/09/2014 -01/10/2014 | B137: US & UK | C137: 1 | D137: 1 | E137: 1 | F137: 303 | G137: NA | H137: Mix of coalition fighter and remotely piloted aircraft | I137: Northwest of Baghdad | J137: Baghdad: 33.3250° N, 44.4220° E | K137: NA | L137: ISIL strongholds near Baghdad | M137: The strikes were conducted as part of the President's comprehensive strategy to degrade and ultimately destroy ISIL. The destruction and degradation of ISIL targets in Syria and Iraq further limits the terrorist group's ability to lead, control, project power and conduct operations. | N137: Destroyed 2 x armed vehicles | O137: NA | P137: NA | Q137: NA | R137: NA | S137: NA | T137: NA | U137: 2 | V137: 2 | W137: NA | X137: NA | Y137: NA | Z137: NA | AA137: NA | AB137: NA | AC137: NA | AD137: NA | AE137: NA | AF137: NA | AG137: http://www.centcom.mil/en/news/articles/oct.-1-u.s.-military-partner-nation-conduct-airstrikes-against-isil
A138: 01/10/2014 - 02/10/2014 | B138: US & UAE | C138: 1 | D138: 1 | E138: 1 | F138: 304 | G138: NA | H138: Mix of coalition fighter, attack, bomber and remotely piloted aircraft | I138: East of Aleppo | J138: Aleppo: 36.2167° N, 37.1667° E | K138: NA | L138: ISIL strongholds near Aleppo | M138: The strikes were conducted as part of the President's comprehensive strategy to degrade and ultimately destroy ISIL. The destruction and degradation of ISIL targets in Syria and Iraq further limits the terrorist group's ability to lead, control, project power and conduct operations | N138: Struck multiple ISIL facilities | O138: NA | P138: NA | Q138: NA | R138: NA | S138: > 2 | T138: NA | U138: NA | V138: NA | W138: NA | X138: NA | Y138: NA | Z138: NA | AA138: NA | AB138: NA | AC138: NA | AD138: NA | AE138: NA | AF138: NA | AG138: http://www.centcom.mil/en/news/articles/oct.-2-u.s.-military-partner-nations-conduct-airstrikes-against-isil
A139: 01/10/2014 - 02/10/2014 | B139: US & UAE | C139: 1 | D139: 1 | E139: 1 | F139: 305 | G139: NA | H139: Mix of coalition fighter, attack, bomber and remotely piloted aircraft | I139: West of Raqqah | J139: Ar Raqqah: 35.9500° N, 39.0167° E | K139: NA | L139: ISIL strongholds near Raqqah | M139: The strikes were conducted as part of the President's comprehensive strategy to degrade and ultimately destroy ISIL. The destruction and degradation of ISIL targets in Syria and Iraq further limits the terrorist group's ability to lead, control, project power and conduct operations | N139: Destroyed 1 x ISIL tank | O139: NA | P139: NA | Q139: NA | R139: NA | S139: NA | T139: NA | U139: 1 | V139: 1 | W139: NA | X139: NA | Y139: NA | Z139: NA | AA139: NA | AB139: NA | AC139: NA | AD139: NA | AG139: http://www.centcom.mil/en/news/articles/oct.-2-u.s.-military-partner-nations-conduct-airstrikes-against-isil
A140: 01/10/2014 - 02/10/2014 | B140: US & UAE | C140: 1 | D140: 1 | E140: 1 | F140: 306 | G140: NA | H140: Mix of coalition fighter, attack, bomber and remotely piloted aircraft | I140: North of Sinjar Mountain | J140: Sinjar Mountain: 36.3667° N, 41.7218° E | K140: NA | L140: ISIL strongholds near Sinjar Mountain | M140: The strikes were conducted as part of the President's comprehensive strategy to degrade and ultimately destroy ISIL. The destruction and degradation of ISIL targets in Syria and Iraq further limits the terrorist group's ability to lead, control, project power and conduct operations | N140: Damaged 1 x ISIL tank | O140: NA | P140: NA | Q140: NA | R140: NA | S140: NA | T140: NA | U140: 1 | V140: 1 | W140: NA | X140: NA | Y140: NA | Z140: NA | AA140: NA | AB140: NA | AC140: NA | AD140: NA | AG140: http://www.centcom.mil/en/news/articles/oct.-2-u.s.-military-partner-nations-conduct-airstrikes-against-isil
A141: 01/10/2014 - 02/10/2014 | B141: US & UAE | C141: 1 | D141: 1 | E141: 1 | F141: 307 | G141: NA | H141: Mix of coalition fighter, attack, bomber and remotely piloted aircraft | I141: Near Kobani | J141: Kobani, Ayn al-Arab: 36.889722° N, 38.355556° E | K141: NA | L141: ISIL strongholds near Kobani | M141: The strikes were conducted as part of the President's comprehensive strategy to degrade and ultimately destroy ISIL. The destruction and degradation of ISIL targets in Syria and Iraq further limits the terrorist group's ability to lead, control, project power and conduct operations | N141: Destroyed 1 x ISIL checkpoint | O141: NA | P141: NA | Q141: NA | R141: NA | S141: NA | T141: NA | U141: NA | V141: NA | W141: NA | X141: NA | Y141: NA | Z141: NA | AA141: 1 | AB141: 1 | AC141: NA | AD141: NA | AE141: NA | AF141: NA | AG141: http://www.centcom.mil/en/news/articles/oct.-2-u.s.-military-partner-nations-conduct-airstrikes-against-isil
A142: 01/10/2014 - 02/10/2014 | B142: US & UK | C142: 1 | D142: 1 | E142: 1 | F142: 308 | G142: NA | H142: Mix of coalition fighter, attack, bomber and remotely piloted aircraft | I142: Northwest of Baghdad | J142: Baghdad: 33.3250° N, 44.4220° E | K142: NA | L142: ISIL strongholds near Baghdad | M142: The strikes were conducted as part of the President's comprehensive strategy to degrade and ultimately destroy ISIL. The destruction and degradation of ISIL targets in Syria and Iraq further limits the terrorist group's ability to lead, control, project power and conduct operations | N142: Destroyed 2 x ISIL armed vehicles and 2 x other ISIL vehicles | O142: NA | P142: NA | Q142: NA | R142: NA | S142: NA | T142: NA | U142: 4 | V142: 4 | W142: NA | X142: NA | Y142: NA | Z142: NA | AA142: NA | AB142: NA | AC142: NA | AD142: NA | AE142: NA | AF142: NA | AG142: http://www.centcom.mil/en/news/articles/oct.-2-u.s.-military-partner-nations-conduct-airstrikes-against-isil
A143: 01/10/2014 - 02/10/2014 | B143: US & UK | C143: 2 | D143: 2 | E143: 2 | F143: 310 | G143: NA | H143: Mix of coalition fighter, attack, bomber and remotely piloted aircraft | I143: Northwest of Mosul | J143: Mosul: 36.3400° N, 43.1300° E | K143: NA | L143: ISIL strongholds near Mosul | M143: The strikes were conducted as part of the President's comprehensive strategy to degrade and ultimately destroy ISIL. The destruction and degradation of ISIL targets in Syria and Iraq further limits the terrorist group's ability to lead, control, project power and conduct operations | N143: Destroyed 1 x ISIL Humvee, damaged 2 x ISIL Humvees, destroyed 3 x armed vehicles, damaged 1 x armed vehicle, damaged 1 x other vehicle and damaged 1 x ISIL building | O143: NA | P143: NA | Q143: NA | R143: NA | S143: 1 | T143: 1 | U143: 8 | V143: 8 | W143: NA | X143: NA | Y143: NA | Z143: NA | AA143: NA | AB143: NA | AC143: NA | AD143: NA | AE143: NA | AF143: NA | AG143: http://www.centcom.mil/en/news/articles/oct.-2-u.s.-military-partner-nations-conduct-airstrikes-against-isil
A144: 01/10/2014 - 02/10/2014 | B144: US & UK | C144: 1 | D144: 1 | E144: 1 | F144: 311 | G144: NA | H144: Mix of coalition fighter, attack, bomber and remotely piloted aircraft | I144: East of Fallujah | J144: Fallujah: 33.3500° N, 43.7833° E | K144: NA | L144: ISIL strongholds near Fallujah | M144: The strikes were conducted as part of the President's comprehensive strategy to degrade and ultimately destroy ISIL. The destruction and degradation of ISIL targets in Syria and Iraq further limits the terrorist group's ability to lead, control, project power and conduct operations | N144: Destroyed 1 x ISIL vehicle | O144: NA | P144: NA | Q144: NA | R144: NA | S144: NA | T144: NA | U144: 1 | V144: 1 | W144: NA | X144: NA | Y144: NA | Z144: NA | AA144: NA | AB144: NA | AC144: NA | AD144: NA | AE144: NA | AF144: NA | AG144: http://www.centcom.mil/en/news/articles/oct.-2-u.s.-military-partner-nations-conduct-airstrikes-against-isil
A145: 01/10/2014 - 02/10/2014 | B145: US & UK | C145: 2 | D145: 2 | E145: 2 | F145: 313 | G145: NA | H145: Mix of coalition fighter, attack, bomber and remotely piloted aircraft | I145: West of Ramadi | J145: Ramadi: 33.4167° N, 43.3000° E | K145: NA | L145: ISIL strongholds near Ramadi | M145: The strikes were conducted as part of the President's comprehensive strategy to degrade and ultimately destroy ISIL. The destruction and degradation of ISIL targets in Syria and Iraq further limits the terrorist group's ability to lead, control, project power and conduct operations | N145: Damaged 1 x ISIL building and destroyed 1 x ISIL vehicle | O145: NA | P145: NA | Q145: NA | R145: NA | S145: 1 | T145: 1 | U145: 1 | V145: 1 | W145: NA | X145: NA | Y145: NA | Z145: NA | AA145: NA | AB145: NA | AC145: NA | AD145: NA | AE145: NA | AF145: NA | AG145: http://www.centcom.mil/en/news/articles/oct.-2-u.s.-military-partner-nations-conduct-airstrikes-against-isil
A146: 01/10/2014 - 02/10/2014 | B146: US & UK | C146: 1 | D146: 1 | E146: 1 | F146: 314 | G146: NA | H146: Mix of coalition fighter, attack, bomber and remotely piloted aircraft | I146: Northeast of Sinjar | J146: Sinjar: 36.3225° N, 41.8642° E | K146: NA | L146: ISIL strongholds near Sinjar | M146: The strikes were conducted as part of the President's comprehensive strategy to degrade and ultimately destroy ISIL. The destruction and degradation of ISIL targets in Syria and Iraq further limits the terrorist group's ability to lead, control, project power and conduct operations | N146: Destroyed 1 x ISIL vehicle | O146: NA | P146: NA | Q146: NA | R146: NA | S146: NA | T146: NA | U146: 1 | V146: 1 | W146: NA | X146: NA | Y146: NA | Z146: NA | AA146: NA | AB146: NA | AC146: NA | AD146: NA | AE146: NA | AF146: NA | AG146: http://www.centcom.mil/en/news/articles/oct.-2-u.s.-military-partner-nations-conduct-airstrikes-against-isil
A147: 02/10/2014 - 03/10/2014 | B147: US, UAE & Saudi Arabia | C147: 1 | D147: 1 | E147: 1 | F147: 315 | G147: NA | H147: Mix of coalition fighter and remotely piloted aircraft | I147: West of Ar Raqqah | J147: Ar Raqqah: 35.9500° N, 39.0167° E | K147: NA | L147: ISIL strongholds near Ar Raqqah | M147: The strikes were conducted as part of the President's comprehensive strategy to degrade and ultimately destroy ISIL. The destruction and degradation of ISIL targets in Syria and Iraq further limits the terrorist group's ability to lead, control, project power and conduct operations | N147: Strike against 1 x ISIL artillery piece unsuccessful | O147: NA | P147: NA | Q147: NA | R147: NA | S147: NA | T147: NA | U147: NA | V147: NA | W147: 0 | X147: 0 | Y147: NA | Z147: NA | AA147: NA | AB147: NA | AC147: NA | AD147: NA | AE147: NA | AF147: NA | AG147: http://www.defense.gov/home/features/2014/0814_iraq/Airstrikes5.html
A148: 02/10/2014 - 03/10/2014 | B148: US, UAE & Saudi Arabia | C148: 1 | D148: 1 | E148: 1 | F148: 316 | G148: NA | H148: Mix of coalition fighter and remotely piloted aircraft | I148: South of Al Hasakah | J148: Al Hasakah: 36.5000° N, 40.9000° E | K148: NA | L148: ISIL strongholds near Al Hasakah | M148: The strikes were conducted as part of the President's comprehensive strategy to degrade and ultimately destroy ISIL. The destruction and degradation of ISIL targets in Syria and Iraq further limits the terrorist group's ability to lead, control, project power and conduct operations | N148: Destroyed 1 x ISIL garrison | O148: NA | P148: NA | Q148: NA | R148: NA | S148: 1 | T148: 1 | U148: NA | V148: NA | W148: NA | X148: NA | Y148: NA | Z148: NA | AA148: NA | AB148: NA | AC148: NA | AD148: NA | AE148: NA | AF148: NA | AG148: http://www.defense.gov/home/features/2014/0814_iraq/Airstrikes5.html
A149: 02/10/2014 - 03/10/2014 | B149: US, UAE & Saudi Arabia | C149: 1 | D149: 1 | E149: 1 | F149: 317 | G149: NA | H149: Mix of coalition fighter and remotely piloted aircraft | I149: Southeast of Dayr Az Zawr | J149: Dayr az Zawr: 35.3333° N, 40.1500° E | K149: NA | L149: ISIL strongholds near Dayr Az Zawr | M149: The strikes were conducted as part of the President's comprehensive strategy to degrade and ultimately destroy ISIL. The destruction and degradation of ISIL targets in Syria and Iraq further limits the terrorist group's ability to lead, control, project power and conduct operations | N149: Destroyed 2 x ISIL tanks | O149: NA | P149: NA | Q149: NA | R149: NA | S149: NA | T149: NA | U149: 2 | V149: 2 | W149: NA | X149: NA | Y149: NA | Z149: NA | AA149: NA | AB149: NA | AC149: NA | AD149: NA | AE149: NA | AF149: NA | AG149: http://www.defense.gov/home/features/2014/0814_iraq/Airstrikes5.html
A150: 02/10/2014 - 03/10/2014 | B150: US, UAE & Saudi Arabia | C150: 2 | D150: 2 | E150: 2 | F150: 319 | G150: NA | H150: Mix of coalition fighter and remotely piloted aircraft | I150: North of Ar Raqqah | J150: Ar Raqqah: 35.9500° N, 39.0167° E | K150: NA | L150: ISIL strongholds near Ar Raqqah | M150: The strikes were conducted as part of the President's comprehensive strategy to degrade and ultimately destroy ISIL. The destruction and degradation of ISIL targets in Syria and Iraq further limits the terrorist group's ability to lead, control, project power and conduct operations | N150: Struck 2 x modular oil refineries and 1 x ISIL training camp | O150: 1 | P150: 1 | Q150: 2 | R150: 2 | S150: NA | T150: NA | U150: NA | V150: NA | W150: NA | X150: NA | Y150: NA | Z150: NA | AA150: NA | AB150: NA | AC150: NA | AD150: NA | AE150: NA | AF150: NA | AG150: http://www.defense.gov/home/features/2014/0814_iraq/Airstrikes5.html
A151: 02/10/2014 - 03/10/2014 | B151: US, UAE & Saudi Arabia | C151: 1 | D151: 1 | E151: 1 | F151: 320 | G151: NA | H151: Mix of coalition fighter and remotely piloted aircraft | I151: Northeast of Aleppo | J151: Aleppo: 36.2167° N, 37.1667° E | K151: NA | L151: ISIL strongholds near Aleppo | M151: The strikes were conducted as part of the President's comprehensive strategy to degrade and ultimately destroy ISIL. The destruction and degradation of ISIL targets in Syria and Iraq further limits the terrorist group's ability to lead, control, project power and conduct operations | N151: Struck 1 x ISIL occupied building | O151: NA | P151: NA | Q151: NA | R151: NA | S151: 1 | T151: 1 | U151: NA | V151: NA | W151: NA | X151: NA | Y151: NA | Z151: NA | AA151: NA | AB151: NA | AC151: NA | AD151: NA | AE151: NA | AF151: NA | AG151: http://www.defense.gov/home/features/2014/0814_iraq/Airstrikes5.html
A152: 2014-10-03 | B152: US | C152: 1 | D152: 1 | E152: 1 | F152: 321 | G152: NA | H152: US attack aircraft | I152: North of Sinjar | J152: Sinjar: 36.3225° N, 41.8642° E | K152: NA | L152: ISIL strongholds near Sinjar | M152: The strikes were conducted as part of the President's comprehensive strategy to degrade and ultimately destroy ISIL. The destruction and degradation of ISIL targets in Syria and Iraq further limits the terrorist group's ability to lead, control, project power and conduct operations | N152: Destroyed 2 x ISIL armed vehicles | O152: NA | P152: NA | Q152: NA | R152: NA | S152: NA | T152: NA | U152: 2 | V152: 2 | W152: NA | X152: NA | Y152: NA | Z152: NA | AA152: NA | AB152: NA | AC152: NA | AD152: NA | AE152: NA | AF152: NA | AG152: http://www.defense.gov/home/features/2014/0814_iraq/Airstrikes5.html
A153: 2014-10-03 | B153: US | C153: 2 | D153: 2 | E153: 2 | F153: 323 | G153: NA | H153: US attack aircraft | I153: Northeast of Fallujah | J153: Fallujah: 33.3500° N, 43.7833° E | K153: NA | L153: ISIL strongholds near Fallujah | M153: The strikes were conducted as part of the President's comprehensive strategy to degrade and ultimately destroy ISIL. The destruction and degradation of ISIL targets in Syria and Iraq further limits the terrorist group's ability to lead, control, project power and conduct operations | N153: Struck ISIL fighters | O153: NA | P153: NA | Q153: NA | R153: NA | S153: NA | T153: NA | U153: NA | V153: NA | W153: NA | X153: NA | Y153: NA | Z153: NA | AA153: NA | AB153: NA | AC153: NA | AD153: NA | AE153: > 2 | AF153: NA | AG153: http://www.defense.gov/home/features/2014/0814_iraq/Airstrikes5.html
A154: 03/10/2014 -04/10/2014 | B154: US, Jordan, UAE & Saudi Arabia | C154: 2 | D154: 2 | E154: 2 | F154: 325 | G154: NA | H154: Mix of coalition fighter and remotely piloted aircraft | I154: South of Ayn al Arab | J154: Kobani, Ayn al-Arab: 36.8897° N, 38.3556° E | K154: NA | L154: ISIL strongholds near Ayn al Arab | M154: The strikes were conducted as part of the President's comprehensive strategy to degrade and ultimately destroy ISIL. The destruction and degradation of ISIL targets in Syria and Iraq further limits the terrorist group's ability to lead, control, project power and conduct operations | N154: Destroyed 1 x ISIL APC, 1 x ISIL vehicle and struck 1 x small ISIL unit | O154: NA | P154: NA | Q154: NA | R154: NA | S154: NA | T154: NA | U154: 2 | V154: 2 | W154: NA | X154: NA | Y154: 1 | Z154: 1 | AA154: NA | AB154: NA | AC154: NA | AD154: NA | AE154: NA | AF154: NA | AG154: http://www.defense.gov/home/features/2014/0814_iraq/Airstrikes5.html
A155: 03/10/2014 -04/10/2014 | B155: US, Jordan, UAE & Saudi Arabia | C155: 2 | D155: 2 | E155: 2 | F155: 327 | G155: NA | H155: Mix of coalition fighter and remotely piloted aircraft | I155: East of Ayn al Arab | J155: Kobani, Ayn al-Arab: 36.8897° N, 38.3556° E | K155: NA | L155: ISIL strongholds near Ayn al Arab | M155: The strikes were conducted as part of the President's comprehensive strategy to degrade and ultimately destroy ISIL. The destruction and degradation of ISIL targets in Syria and Iraq further limits the terrorist group's ability to lead, control, project power and conduct operations | N155: Destroyed 1 x ISIL vehicle, 1 x ISIL building, 3 x artillery positions and struck 1 x large ISIL unit | O155: NA | P155: NA | Q155: NA | R155: NA | S155: 1 | T155: 1 | U155: 1 | V155: 1 | W155: NA | X155: NA | Y155: 4 | Z155: 4 | AA155: NA | AB155: NA | AC155: NA | AD155: NA | AE155: NA | AF155: NA | AG155: http://www.defense.gov/home/features/2014/0814_iraq/Airstrikes5.html
A156: 03/10/2014 -04/10/2014 | B156: US, Jordan, UAE & Saudi Arabia | C156: 2 | D156: 2 | E156: 2 | F156: 329 | G156: NA | H156: Mix of coalition fighter and remotely piloted aircraft | I156: Southeast of Dayr Az Zawr | J156: Dayr az Zawr: 35.3333° N, 40.1500° E | K156: NA | L156: ISIL strongholds near Dayr Az Zawr | M156: The strikes were conducted as part of the President's comprehensive strategy to degrade and ultimately destroy ISIL. The destruction and degradation of ISIL targets in Syria and Iraq further limits the terrorist group's ability to lead, control, project power and conduct operations | N156: Destroyed 1 x ISIL tank and 1 x ISIL vehicle | O156: NA | P156: NA | Q156: NA | R156: NA | S156: NA | T156: NA | U156: 2 | V156: 2 | W156: NA | X156: NA | Y156: NA | Z156: NA | AA156: NA | AB156: NA | AC156: NA | AD156: NA | AE156: NA | AF156: NA | AG156: http://www.defense.gov/home/features/2014/0814_iraq/Airstrikes5.html
A157: 03/10/2014 -04/10/2014 | B157: US, Jordan, UAE & Saudi Arabia | C157: 1 | D157: 1 | E157: 1 | F157: 330 | G157: NA | H157: Mix of coalition fighter and remotely piloted aircraft | I157: Tabqah Airfield, southwest of Ar Raqqah | J157: Tabqah Airfield: 35.764722°N, 38.566944°E | K157: NA | L157: Tabqah Airfield | M157: The strikes were conducted as part of the President's comprehensive strategy to degrade and ultimately destroy ISIL. The destruction and degradation of ISIL targets in Syria and Iraq further limits the terrorist group's ability to lead, control, project power and conduct operations | N157: Damaged TabqahAirfield | O157: NA | P157: NA | Q157: NA | R157: NA | S157: 1 | T157: 1 | U157: NA | V157: NA | W157: NA | X157: NA | Y157: NA | Z157: NA | AA157: NA | AB157: NA | AC157: NA | AD157: NA | AE157: NA | AF157: NA | AG157: http://www.defense.gov/home/features/2014/0814_iraq/Airstrikes5.html
A158: 03/10/2014 -04/10/2014 | B158: US, Jordan, UAE & Saudi Arabia | C158: 1 | D158: 1 | E158: 1 | F158: 331 | G158: NA | H158: Mix of coalition fighter and remotely piloted aircraft | I158: West of Ar Raqqah | J158: Ar Raqqah: 35.9500° N, 39.0167° E | K158: NA | L158: ISIL strongholds near Ar Raqqah | M158: The strikes were conducted as part of the President's comprehensive strategy to degrade and ultimately destroy ISIL. The destruction and degradation of ISIL targets in Syria and Iraq further limits the terrorist group's ability to lead, control, project power and conduct operations | N158: Destroyed 1 x ISIL artillery piece | O158: NA | P158: NA | Q158: NA | R158: NA | S158: NA | T158: NA | U158: NA | V158: NA | W158: 1 | X158: 1 | Y158: NA | Z158: NA | AA158: NA | AB158: NA | AC158: NA | AD158: NA | AE158: NA | AF158: NA | AG158: http://www.defense.gov/home/features/2014/0814_iraq/Airstrikes5.html
A159: 03/10/2014 -04/10/2014 | B159: US, Jordan, UAE & Saudi Arabia | C159: 1 | D159: 1 | E159: 1 | F159: 332 | G159: NA | H159: Mix of coalition fighter and remotely piloted aircraft | I159: South of Al Hasakah | J159: Al Hasakah: 36.5000° N, 40.9000° E | K159: NA | L159: ISIL strongholds near Al Hasakah | M159: The strikes were conducted as part of the President's comprehensive strategy to degrade and ultimately destroy ISIL. The destruction and degradation of ISIL targets in Syria and Iraq further limits the terrorist group's ability to lead, control, project power and conduct operations | N159: Destroyed 1 x ISIL depot and logistics complex. | O159: NA | P159: NA | Q159: NA | R159: NA | S159: 1 | T159: 1 | U159: NA | V159: NA | W159: NA | X159: NA | Y159: NA | Z159: NA | AA159: NA | AB159: NA | AC159: NA | AD159: NA | AE159: NA | AF159: NA | AG159: http://www.defense.gov/home/features/2014/0814_iraq/Airstrikes5.html
A160: 03/10/2014 -04/10/2014 | B160: US | C160: 2 | D160: 2 | E160: 2 | F160: 334 | G160: NA | H160: Mix of US attack, bomber and fighter aircraft | I160: Northeast of Fallujah | J160: Fallujah: 33.3500° N, 43.7833° E | K160: NA | L160: ISIL strongholds near Fallujah | M160: The strikes were conducted as part of the President's comprehensive strategy to degrade and ultimately destroy ISIL. The destruction and degradation of ISIL targets in Syria and Iraq further limits the terrorist group's ability to lead, control, project power and conduct operations | N160: Destroyed 1 x ISIL vehicle and struck 1 x small ISIL unit | O160: NA | P160: NA | Q160: NA | R160: NA | S160: NA | T160: NA | U160: 1 | V160: 1 | W160: NA | X160: NA | Y160: 1 | Z160: 1 | AA160: NA | AB160: NA | AC160: NA | AD160: NA | AE160: NA | AF160: NA | AG160: http://www.defense.gov/home/features/2014/0814_iraq/Airstrikes5.html
A161: 03/10/2014 -04/10/2014 | B161: US | C161: 1 | D161: 1 | E161: 1 | F161: 335 | G161: NA | H161: Mix of US attack, bomber and fighter aircraft | I161: South of Rabiyah | J161: Rabiyah: 36.804722° N, 42.088889° E | K161: NA | L161: ISIL strongholds near Rabiyah | M161: The strikes were conducted as part of the President's comprehensive strategy to degrade and ultimately destroy ISIL. The destruction and degradation of ISIL targets in Syria and Iraq further limits the terrorist group's ability to lead, control, project power and conduct operations | N161: Struck 1 x large ISIL unit | O161: NA | P161: NA | Q161: NA | R161: NA | S161: NA | T161: NA | U161: NA | V161: NA | W161: NA | X161: NA | Y161: 1 | Z161: 1 | AA161: NA | AB161: NA | AC161: NA | AD161: NA | AE161: NA | AF161: NA | AG161: http://www.defense.gov/home/features/2014/0814_iraq/Airstrikes5.html
A162: 03/10/2014 -04/10/2014 | B162: US | C162: 1 | D162: 1 | E162: 1 | F162: 336 | G162: NA | H162: Mix of US attack, bomber and fighter aircraft | I162: North of Hit | J162: Hit: 33.6450° N, 42.8264° E | K162: NA | L162: ISIL strongholds near Hit | M162: The strikes were conducted as part of the President's comprehensive strategy to degrade and ultimately destroy ISIL. The destruction and degradation of ISIL targets in Syria and Iraq further limits the terrorist group's ability to lead, control, project power and conduct operations | N162: Destroyed 2 x ISIL humvees | O162: NA | P162: NA | Q162: NA | R162: NA | S162: NA | T162: NA | U162: 2 | V162: 2 | W162: NA | X162: NA | Y162: NA | Z162: NA | AA162: NA | AB162: NA | AC162: NA | AD162: NA | AE162: NA | AF162: NA | AG162: http://www.defense.gov/home/features/2014/0814_iraq/Airstrikes5.html
A163: 03/10/2014 -04/10/2014 | B163: US | C163: 1 | D163: 1 | E163: 1 | F163: 337 | G163: NA | H163: Mix of US attack, bomber and fighter aircraft | I163: North of Ramadi | J163: Ramadi: 33.4167° N, 43.3000° E | K163: NA | L163: ISIL strongholds near Ramadi | M163: The strikes were conducted as part of the President's comprehensive strategy to degrade and ultimately destroy ISIL. The destruction and degradation of ISIL targets in Syria and Iraq further limits the terrorist group's ability to lead, control, project power and conduct operations | N163: Destroyed 1x ISIL APC | O163: NA | P163: NA | Q163: NA | R163: NA | S163: NA | T163: NA | U163: 1 | V163: 1 | W163: NA | X163: NA | Y163: NA | Z163: NA | AA163: NA | AB163: NA | AC163: NA | AD163: NA | AE163: NA | AF163: NA | AG163: http://www.defense.gov/home/features/2014/0814_iraq/Airstrikes5.html
A164: 04/10/2014 - 05/10/2014 | B164: US | C164: 1 | D164: 1 | E164: 1 | F164: 338 | G164: NA | H164: US fighter aircraft | I164: Northwest of Al Mayadin | J164: Al Mayadin: 35.0167° N, 40.4500° E | K164: NA | L164: ISIL strongholds northwest of Al Mayadin | M164: The strikes were conducted as part of the President's comprehensive strategy to degrade and ultimately destroy ISIL. The destruction and degradation of ISIL targets in Syria and Iraq further limits the terrorist group's ability to lead, control, project power and conduct operations | N164: Destroyed 1 x ISIL bulldozer, 2 x ISIL tanks and destroyed 1 x ISIL vehicle | O164: NA | P164: NA | Q164: NA | R164: NA | S164: NA | T164: NA | U164: 4 | V164: 4 | W164: NA | X164: NA | Y164: NA | Z164: NA | AA164: NA | AB164: NA | AC164: NA | AD164: NA | AE164: NA | AF164: NA | AG164: http://www.defense.gov/home/features/2014/0814_iraq/Airstrikes5.html
A165: 04/10/2014 - 05/10/2014 | B165: US | C165: 2 | D165: 2 | E165: 2 | F165: 340 | G165: NA | H165: US fighter aircraft | I165: Northwest of Ar Raqqah | J165: Ar Raqqah: 35.9500° N, 39.0167° E | K165: NA | L165: ISIL strongholds near Ar Raqqah | M165: The strikes were conducted as part of the President's comprehensive strategy to degrade and ultimately destroy ISIL. The destruction and degradation of ISIL targets in Syria and Iraq further limits the terrorist group's ability to lead, control, project power and conduct operations | N165: Struck 1 x large ISIL unit and destroyed 6 x ISIL firing positions | O165: NA | P165: NA | Q165: NA | R165: NA | S165: NA | T165: NA | U165: NA | V165: NA | W165: NA | X165: NA | Y165: 7 | Z165: 7 | AA165: NA | AB165: NA | AC165: NA | AD165: NA | AE165: NA | AF165: NA | AG165: http://www.defense.gov/home/features/2014/0814_iraq/Airstrikes5.html
A166: 04/10/2014 - 05/10/2014 | B166: US | C166: 4 | D166: 4 | E166: 4 | F166: 344 | G166: NA | H166: Mix of US attack, bomber, fighter and helicopter aircraft | I166: Northeast of Fallujah | J166: Fallujah: 33.3500° N, 43.7833° E | K166: NA | L166: ISIL strongholds near Fallujah | M166: The strikes were conducted as part of the President's comprehensive strategy to degrade and ultimately destroy ISIL. The destruction and degradation of ISIL targets in Syria and Iraq further limits the terrorist group's ability to lead, control, project power and conduct operations | N166: Struck 2 x mortar teams,1 x large ISIL unit and 2 x small ISIL units | O166: NA | P166: NA | Q166: NA | R166: NA | S166: NA | T166: NA | U166: NA | V166: NA | W166: NA | X166: NA | Y166: 5 | Z166: 5 | AA166: NA | AB166: NA | AC166: NA | AD166: NA | AE166: NA | AF166: NA | AG166: http://www.defense.gov/home/features/2014/0814_iraq/Airstrikes5.html
A167: 04/10/2014 - 05/10/2014 | B167: US | C167: 1 | D167: 1 | E167: 1 | F167: 345 | G167: NA | H167: Mix of US attack, bomber, fighter and helicopter aircraft | I167: Southeast of Hit | J167: Hit: 33.6450° N, 42.8264° E | K167: NA | L167: ISIL strongholds near Hit | M167: The strikes were conducted as part of the President's comprehensive strategy to degrade and ultimately destroy ISIL. The destruction and degradation of ISIL targets in Syria and Iraq further limits the terrorist group's ability to lead, control, project power and conduct operations | N167: Destroyed 2 x ISIL humvees | O167: NA | P167: NA | Q167: NA | R167: NA | S167: NA | T167: NA | U167: 2 | V167: 2 | W167: NA | X167: NA | Y167: NA | Z167: NA | AA167: NA | AB167: NA | AC167: NA | AD167: NA | AE167: NA | AF167: NA | AG167: http://www.defense.gov/home/features/2014/0814_iraq/Airstrikes5.html
A168: 04/10/2014 - 05/10/2014 | B168: US | C168: 1 | D168: 1 | E168: 1 | F168: 346 | G168: NA | H168: Mix of US attack, bomber, fighter and helicopter aircraft | I168: Northeast of Sinjar | J168: Sinjar: 36.3225° N, 41.8642° E | K168: NA | L168: ISIL strongholds near Sinjar | M168: The strikes were conducted as part of the President's comprehensive strategy to degrade and ultimately destroy ISIL. The destruction and degradation of ISIL targets in Syria and Iraq further limits the terrorist group's ability to lead, control, project power and conduct operations | N168: Destroyed 1 x ISIL Humvee | O168: NA | P168: NA | Q168: NA | R168: NA | S168: NA | T168: NA | U168: 1 | V168: 1 | W168: NA | X168: NA | Y168: NA | Z168: NA | AA168: NA | AB168: NA | AC168: NA | AD168: NA | AE168: NA | AF168: NA | AG168: http://www.defense.gov/home/features/2014/0814_iraq/Airstrikes5.html
A169: 05/10/2014 - 06/10/2014 | B169: US | C169: 1 | D169: 1 | E169: 1 | F169: 347 | G169: NA | H169: Mix of US fighter and remotely piloted aircraft | I169: Near Taqba Airfield | J169: Taqba Airfield: 35.4553°N, 38.341°E | K169: NA | L169: ISIL strongholds near Taqba Airfield | M169: The strikes were conducted as part of the President's comprehensive strategy to degrade and ultimately destroy ISIL. The destruction and degradation of ISIL targets in Syria and Iraq further limits the terrorist group's ability to lead, control, project power and conduct operations | N169: Destroyed 1 x ISIL tank | O169: NA | P169: NA | Q169: NA | R169: NA | S169: NA | T169: NA | U169: 1 | V169: 1 | W169: NA | X169: NA | Y169: NA | Z169: NA | AA169: NA | AB169: NA | AC169: NA | AD169: NA | AE169: NA | AF169: NA | AG169: http://www.centcom.mil/en/news/articles/oct.-6-u.s.-military-partner-nations-conduct-airstrikes-against-isil-in-syr
A170: 05/10/2014 - 06/10/2014 | B170: US | C170: 1 | D170: 1 | E170: 1 | F170: 348 | G170: NA | H170: Mix of US fighter and remotely piloted aircraft | I170: South of Kobani | J170: Kobani, Ayn al-Arab: 36.889722° N, 38.355556° E | K170: NA | L170: ISIL strongholds near Kobani | M170: The strikes were conducted as part of the President's comprehensive strategy to degrade and ultimately destroy ISIL. The destruction and degradation of ISIL targets in Syria and Iraq further limits the terrorist group's ability to lead, control, project power and conduct operations | N170: Destroyed 2 x ISIL fighting positions | O170: NA | P170: NA | Q170: NA | R170: NA | S170: NA | T170: NA | U170: NA | V170: NA | W170: NA | X170: NA | Y170: 2 | Z170: 2 | AA170: NA | AB170: NA | AC170: NA | AD170: NA | AE170: NA | AF170: NA | AG170: http://www.centcom.mil/en/news/articles/oct.-6-u.s.-military-partner-nations-conduct-airstrikes-against-isil-in-syr
A171: 05/10/2014 - 06/10/2014 | B171: US | C171: 1 | D171: 1 | E171: 1 | F171: 349 | G171: NA | H171: Mix of US fighter and remotely piloted aircraft | I171: Southeast of Dayr az Zawr | J171: Dayr az Zawr: 35.3333° N, 40.1500° E | K171: NA | L171: ISIL strongholds near Dayr Az Zawr | M171: The strikes were conducted as part of the President's comprehensive strategy to degrade and ultimately destroy ISIL. The destruction and degradation of ISIL targets in Syria and Iraq further limits the terrorist group's ability to lead, control, project power and conduct operations | N171: Destroyed 1 x ISIL tank | O171: NA | P171: NA | Q171: NA | R171: NA | S171: NA | T171: NA | U171: 1 | V171: 1 | W171: NA | X171: NA | Y171: NA | Z171: NA | AA171: NA | AB171: NA | AC171: NA | AD171: NA | AE171: NA | AF171: NA | AG171: http://www.centcom.mil/en/news/articles/oct.-6-u.s.-military-partner-nations-conduct-airstrikes-against-isil-in-syr
A172: 05/10/2014 - 06/10/2014 | B172: US, Belgium & UK | C172: 2 | D172: 2 | E172: 2 | F172: 351 | G172: NA | H172: Mix of coalition remotely piloted and rotary wing aircraft | I172: Northeast of Fallujah | J172: Fallujah: 33.3500° N, 43.7833° E | K172: NA | L172: ISIL strongholds near Fallujah | M172: The strikes were conducted as part of the President's comprehensive strategy to degrade and ultimately destroy ISIL. The destruction and degradation of ISIL targets in Syria and Iraq further limits the terrorist group's ability to lead, control, project power and conduct operations | N172: Struck 2 x small ISIL units and destroyed 2 x ISIL mortar placements and 1 x ISIL bunker | O172: NA | P172: NA | Q172: NA | R172: NA | S172: 1 | T172: 1 | U172: NA | V172: NA | W172: 2 | X172: 2 | Y172: 2 | Z172: 2 | AA172: NA | AB172: NA | AC172: NA | AD172: NA | AE172: NA | AF172: NA | AG172: http://www.centcom.mil/en/news/articles/oct.-6-u.s.-military-partner-nations-conduct-airstrikes-against-isil-in-syr
A173: 05/10/2014 - 06/10/2014 | B173: US, Belgium & UK | C173: 1 | D173: 1 | E173: 1 | F173: 352 | G173: NA | H173: Mix of coalition remotely piloted and rotary wing aircraft | I173: West of Ramadi | J173: Ramadi: 33.4167° N, 43.3000° E | K173: NA | L173: ISIL strongholds near Ramadi | M173: The strikes were conducted as part of the President's comprehensive strategy to degrade and ultimately destroy ISIL. The destruction and degradation of ISIL targets in Syria and Iraq further limits the terrorist group's ability to lead, control, project power and conduct operations | N173: Damaged 1 x ISIL-held building | O173: NA | P173: NA | Q173: NA | R173: NA | S173: 1 | T173: 1 | U173: NA | V173: NA | W173: NA | X173: NA | Y173: NA | Z173: NA | AA173: NA | AB173: NA | AC173: NA | AD173: NA | AE173: NA | AF173: NA | AG173: http://www.centcom.mil/en/news/articles/oct.-6-u.s.-military-partner-nations-conduct-airstrikes-against-isil-in-syr
A174: 06/10/2014 - 07/10/2014 | B174: US, UAE & Saudi Arabia | C174: 2 | D174: 2 | E174: 2 | F174: 354 | G174: NA | H174: Mix of coalition attack, bomber, fighter, and remotely piloted aircraft | I174: West of Al-Hasakah | J174: Al Hasakah: 36.5000° N, 40.9000° E | K174: NA | L174: ISIL strongholds near Al Hasakah | M174: The strikes were conducted as part of the President's comprehensive strategy to degrade and ultimately destroy ISIL. The destruction and degradation of ISIL targets in Syria and Iraq further limits the terrorist group's ability to lead, control, project power and conduct operations | N174: Struck multiple ISIL buildings, (including an air observation building and staging areas). | O174: NA | P174: NA | Q174: NA | R174: NA | S174: > 3 | T174: NA | U174: NA | V174: NA | W174: NA | X174: NA | Y174: NA | Z174: NA | AA174: NA | AB174: NA | AC174: NA | AD174: NA | AE174: NA | AF174: NA | AG174: http://www.centcom.mil/en/news/articles/oct.-7-u.s.-military-partner-nations-conduct-airstrikes-against-isil
A175: 06/10/2014 - 07/10/2014 | B175: US, UAE & Saudi Arabia | C175: 1 | D175: 1 | E175: 1 | F175: 355 | G175: NA | H175: Mix of coalition attack, bomber, fighter, and remotely piloted aircraft | I175: Northeast of Dayr az Zawr | J175: Dayr az Zawr: 35.3333° N, 40.1500° E | K175: NA | L175: ISIL strongholds near Dayr Az Zawr | M175: The strikes were conducted as part of the President's comprehensive strategy to degrade and ultimately destroy ISIL. The destruction and degradation of ISIL targets in Syria and Iraq further limits the terrorist group's ability to lead, control, project power and conduct operations | N175: Struck 1 x ISIL staging area and 1 x IED production facility | O175: NA | P175: NA | Q175: NA | R175: NA | S175: 2 | T175: 2 | U175: NA | V175: NA | W175: NA | X175: NA | Y175: NA | Z175: NA | AA175: NA | AB175: NA | AC175: NA | AD175: NA | AE175: NA | AF175: NA | AG175: http://www.centcom.mil/en/news/articles/oct.-7-u.s.-military-partner-nations-conduct-airstrikes-against-isil
A176: 06/10/2014 - 07/10/2014 | B176: US, UAE & Saudi Arabia | C176: 1 | D176: 1 | E176: 1 | F176: 356 | G176: NA | H176: Mix of coalition attack, bomber, fighter, and remotely piloted aircraft | I176: South of Kobani | J176: Kobani, Ayn al-Arab: 36.889722° N, 38.355556° E | K176: NA | L176: ISIL strongholds near Kobani | M176: The strikes were conducted as part of the President's comprehensive strategy to degrade and ultimately destroy ISIL. The destruction and degradation of ISIL targets in Syria and Iraq further limits the terrorist group's ability to lead, control, project power and conduct operations | N176: Destroyed 3 x ISIL armed vehicles and damaged 1 x ISIL armed vehicles | O176: NA | P176: NA | Q176: NA | R176: NA | S176: NA | T176: NA | U176: 4 | V176: 4 | W176: NA | X176: NA | Y176: NA | Z176: NA | AA176: NA | AB176: NA | AC176: NA | AD176: NA | AE176: NA | AF176: NA | AG176: http://www.centcom.mil/en/news/articles/oct.-7-u.s.-military-partner-nations-conduct-airstrikes-against-isil
A177: 06/10/2014 - 07/10/2014 | B177: US, UAE & Saudi Arabia | C177: 1 | D177: 1 | E177: 1 | F177: =F176+E177 -> 357 | G177: NA | H177: Mix of coalition attack, bomber, fighter, and remotely piloted aircraft | I177: Southeast of Kobani | J177: Kobani, Ayn al-Arab: 36.889722° N, 38.355556° E | K177: NA | L177: ISIL strongholds near Kobani | M177: The strikes were conducted as part of the President's comprehensive strategy to degrade and ultimately destroy ISIL. The destruction and degradation of ISIL targets in Syria and Iraq further limits the terrorist group's ability to lead, control, project power and conduct operations | N177: Destroyed 1 x ISIL armed vehicle carrying anti-aircraft artillery. | O177: NA | P177: NA | Q177: NA | R177: NA | S177: NA | T177: NA | U177: 1 | V177: 1 | W177: 1 | X177: 1 | Y177: NA | Z177: NA | AA177: NA | AB177: NA | AC177: NA | AD177: NA | AE177: NA | AF177: NA | AG177: http://www.centcom.mil/en/news/articles/oct.-7-u.s.-military-partner-nations-conduct-airstrikes-against-isil
A178: 06/10/2014 - 07/10/2014 | B178: US, UAE & Saudi Arabia | C178: 2 | D178: 2 | E178: 2 | F178: 359 | G178: NA | H178: Mix of coalition attack, bomber, fighter, and remotely piloted aircraft | I178: Southwest of Kobani | J178: Kobani, Ayn al-Arab: 36.889722° N, 38.355556° E | K178: NA | L178: ISIL strongholds near Kobani | M178: The strikes were conducted as part of the President's comprehensive strategy to degrade and ultimately destroy ISIL. The destruction and degradation of ISIL targets in Syria and Iraq further limits the terrorist group's ability to lead, control, project power and conduct operations | N178: Damaged 1 x ISIL tank | O178: NA | P178: NA | Q178: NA | R178: NA | S178: NA | T178: NA | U178: 1 | V178: 1 | W178: NA | X178: NA | Y178: NA | Z178: NA | AA178: NA | AB178: NA | AC178: NA | AD178: NA | AE178: NA | AF178: NA | AG178: http://www.centcom.mil/en/news/articles/oct.-7-u.s.-military-partner-nations-conduct-airstrikes-against-isil
A179: 06/10/2014 - 07/10/2014 | B179: US, UAE & Saudi Arabia | C179: 1 | D179: 1 | E179: 1 | F179: 360 | G179: NA | H179: Mix of coalition attack, bomber, fighter, and remotely piloted aircraft | I179: South of Kobani | J179: Kobani, Ayn al-Arab: 36.889722° N, 38.355556° E | K179: NA | L179: ISIL strongholds near Kobani | M179: The strikes were conducted as part of the President's comprehensive strategy to degrade and ultimately destroy ISIL. The destruction and degradation of ISIL targets in Syria and Iraq further limits the terrorist group's ability to lead, control, project power and conduct operations | N179: Destroyed 1 x ISIL unit | O179: NA | P179: NA | Q179: NA | R179: NA | S179: NA | T179: NA | U179: NA | V179: NA | W179: NA | X179: NA | Y179: 1 | Z179: 1 | AA179: NA | AB179: NA | AC179: NA | AD179: NA | AE179: NA | AF179: NA | AG179: http://www.centcom.mil/en/news/articles/oct.-7-u.s.-military-partner-nations-conduct-airstrikes-against-isil
A180: 06/10/2014 - 07/10/2014 | B180: US, UAE & Saudi Arabia | C180: 1 | D180: 1 | E180: 1 | F180: 361 | G180: NA | H180: Mix of coalition attack, bomber, fighter, and remotely piloted aircraft | I180: Southwest of Rabiyah | J180: Rabiyah: 36.804722° N, 42.088889° E | K180: NA | L180: ISIL strongholds near Rabiyah | M180: The strikes were conducted as part of the President's comprehensive strategy to degrade and ultimately destroy ISIL. The destruction and degradation of ISIL targets in Syria and Iraq further limits the terrorist group's ability to lead, control, project power and conduct operations | N180: Struck a small group of ISIL fighters | O180: NA | P180: NA | Q180: NA | R180: NA | S180: NA | T180: NA | U180: NA | V180: NA | W180: NA | X180: NA | Y180: NA | Z180: NA | AA180: NA | AB180: NA | AC180: NA | AD180: NA | AE180: >2 | AF180: NA | AG180: http://www.centcom.mil/en/news/articles/oct.-7-u.s.-military-partner-nations-conduct-airstrikes-against-isil
A181: 06/10/2014 - 07/10/2014 | B181: US & Belgium | C181: 1 | D181: 1 | E181: 1 | F181: 362 | G181: NA | H181: Mix of US attack and remotely piloted aircraft | I181: Northeast of Sinjar | J181: Sinjar: 36.3225° N, 41.8642° E | K181: NA | L181: ISIL strongholds near Sinjar | M181: The strikes were conducted as part of the President's comprehensive strategy to degrade and ultimately destroy ISIL. The destruction and degradation of ISIL targets in Syria and Iraq further limits the terrorist group's ability to lead, control, project power and conduct operations | N181: Destroyed 1 x ISIL armed vehicle firing on Peshmerga forces | O181: NA | P181: NA | Q181: NA | R181: NA | S181: NA | T181: NA | U181: 1 | V181: 1 | W181: NA | X181: NA | Y181: NA | Z181: NA | AA181: NA | AB181: NA | AC181: NA | AD181: NA | AE181: NA | AF181: NA | AG181: http://www.centcom.mil/en/news/articles/oct.-7-u.s.-military-partner-nations-conduct-airstrikes-against-isil
A182: 06/10/2014 - 07/10/2014 | B182: US & Belgium | C182: 1 | D182: 1 | E182: 1 | F182: 363 | G182: NA | H182: Mix of US attack and remotely piloted aircraft | I182: Northeast of Sinjar | J182: Sinjar: 36.3225° N, 41.8642° E | K182: NA | L182: ISIL strongholds near Sinjar | M182: The strikes were conducted as part of the President's comprehensive strategy to degrade and ultimately destroy ISIL. The destruction and degradation of ISIL targets in Syria and Iraq further limits the terrorist group's ability to lead, control, project power and conduct operations | N182: Destroyed 2 x ISIL armed vehicles | O182: NA | P182: NA | Q182: NA | R182: NA | S182: NA | T182: NA | U182: 2 | V182: 2 | W182: NA | X182: NA | Y182: NA | Z182: NA | AA182: NA | AB182: NA | AC182: NA | AD182: NA | AE182: NA | AF182: NA | AG182: http://www.centcom.mil/en/news/articles/oct.-7-u.s.-military-partner-nations-conduct-airstrikes-against-isil
A183: 06/10/2014 - 07/10/2014 | B183: US & Belgium | C183: 1 | D183: 1 | E183: 1 | F183: 364 | G183: NA | H183: Mix of US attack and remotely piloted aircraft | I183: Northeast of Sinjar | J183: Sinjar: 36.3225° N, 41.8642° E | K183: NA | L183: ISIL strongholds near Sinjar | M183: The strikes were conducted as part of the President's comprehensive strategy to degrade and ultimately destroy ISIL. The destruction and degradation of ISIL targets in Syria and Iraq further limits the terrorist group's ability to lead, control, project power and conduct operations | N183: Destroyed 1 x ISIL armed vehicle | O183: NA | P183: NA | Q183: NA | R183: NA | S183: NA | T183: NA | U183: 1 | V183: 1 | W183: NA | X183: NA | Y183: NA | Z183: NA | AA183: NA | AB183: NA | AC183: NA | AD183: NA | AE183: NA | AF183: NA | AG183: http://www.centcom.mil/en/news/articles/oct.-7-u.s.-military-partner-nations-conduct-airstrikes-against-isil
A184: 06/10/2014 - 07/10/2014 | B184: US & Belgium | C184: 1 | D184: 1 | E184: 1 | F184: 365 | G184: NA | H184: Mix of US attack and remotely piloted aircraft | I184: Northeast of Sinjar | J184: Sinjar: 36.3225° N, 41.8642° E | K184: NA | L184: ISIL strongholds near Sinjar | M184: The strikes were conducted as part of the President's comprehensive strategy to degrade and ultimately destroy ISIL. The destruction and degradation of ISIL targets in Syria and Iraq further limits the terrorist group's ability to lead, control, project power and conduct operations | N184: Struck a small group of ISIL fighters | O184: NA | P184: NA | Q184: NA | R184: NA | S184: NA | T184: NA | U184: NA | V184: NA | W184: NA | X184: NA | Y184: NA | Z184: NA | AA184: NA | AB184: NA | AC184: NA | AD184: NA | AE184: >2 | AF184: NA | AG184: http://www.centcom.mil/en/news/articles/oct.-7-u.s.-military-partner-nations-conduct-airstrikes-against-isil
A185: 7/10/2014 - 8/10/2014 | B185: US & UAE | C185: 4 | D185: 4 | E185: 4 | F185: 369 | G185: NA | H185: Mix of coalition bomber, fighter, and remotely piloted aircraft | I185: South of Kobani | J185: Kobani, Ayn al-Arab: 36.889722° N, 38.355556° E | K185: NA | L185: ISIL strongholds near Kobani | M185: The strikes were conducted as part of the President's comprehensive strategy to degrade and ultimately destroy ISIL. The destruction and degradation of ISIL targets in Syria and Iraq further limits the terrorist group's ability to lead, control, project power and conduct operations | N185: Destroyed 1 x ISIL APC, destroyed 3 x ISIL armed vehicles and damaged 1 x ISIL armed vehicle, and destroyed 1 x ISIL artillery piece | O185: NA | P185: NA | Q185: NA | R185: NA | S185: NA | T185: NA | U185: 5 | V185: 5 | W185: 1 | X185: 1 | Y185: NA | Z185: NA | AA185: NA | AB185: NA | AC185: NA | AD185: NA | AE185: NA | AF185: NA | AG185: http://www.centcom.mil/en/news/articles/oct.-8-u.s.-military-partner-nations-conduct-airstrikes-against-isil
A186: 7/10/2014 - 8/10/2014 | B186: US & UAE | C186: 1 | D186: 1 | E186: 1 | F186: 370 | G186: NA | H186: Mix of coalition bomber, fighter, and remotely piloted aircraft | I186: Southwest of Kobani | J186: Kobani, Ayn al-Arab: 36.889722° N, 38.355556° E | K186: NA | L186: ISIL strongholds near Kobani | M186: The strikes were conducted as part of the President's comprehensive strategy to degrade and ultimately destroy ISIL. The destruction and degradation of ISIL targets in Syria and Iraq further limits the terrorist group's ability to lead, control, project power and conduct operations | N186: Destroyed 1 x ISIL armed vehicle | O186: NA | P186: NA | Q186: NA | R186: NA | S186: NA | T186: NA | U186: 1 | V186: 1 | W186: NA | X186: NA | Y186: NA | Z186: NA | AA186: NA | AB186: NA | AC186: NA | AD186: NA | AE186: NA | AF186: NA | AG186: http://www.centcom.mil/en/news/articles/oct.-8-u.s.-military-partner-nations-conduct-airstrikes-against-isil
A187: 7/10/2014 - 8/10/2014 | B187: US & UAE | C187: 1 | D187: 1 | E187: 1 | F187: 371 | G187: NA | H187: Mix of coalition bomber, fighter, and remotely piloted aircraft | I187: Southern edge of Kobani | J187: Kobani, Ayn al-Arab: 36.889722° N, 38.355556° E | K187: NA | L187: ISIL strongholds near Kobani | M187: The strikes were conducted as part of the President's comprehensive strategy to degrade and ultimately destroy ISIL. The destruction and degradation of ISIL targets in Syria and Iraq further limits the terrorist group's ability to lead, control, project power and conduct operations | N187: Destroyed 1 x ISIL artillery piece | O187: NA | P187: NA | Q187: NA | R187: NA | S187: NA | T187: NA | U187: NA | V187: NA | W187: 1 | X187: 1 | Y187: NA | Z187: NA | AA187: NA | AB187: NA | AC187: NA | AD187: NA | AE187: NA | AF187: NA | AG187: http://www.centcom.mil/en/news/articles/oct.-8-u.s.-military-partner-nations-conduct-airstrikes-against-isil
A188: 7/10/2014 - 8/10/2014 | B188: US & UAE | C188: 2 | D188: 2 | E188: 2 | F188: 373 | G188: NA | H188: Mix of coalition bomber, fighter, and remotely piloted aircraft | I188: Northwest of Ar Raqqah | J188: Ar Raqqah: 35.9500° N, 39.0167° E | K188: NA | L188: ISIL strongholds near Ar Raqqah | M188: The strikes were conducted as part of the President's comprehensive strategy to degrade and ultimately destroy ISIL. The destruction and degradation of ISIL targets in Syria and Iraq further limits the terrorist group's ability to lead, control, project power and conduct operations | N188: Struck 1 x active ISIL training camp and associated ISIL fighters. | O188: 1 | P188: 1 | Q188: NA | R188: NA | S188: NA | T188: NA | U188: NA | V188: NA | W188: NA | X188: NA | Y188: NA | Z188: NA | AA188: NA | AB188: NA | AC188: NA | AD188: NA | AE188: > 2 | AF188: NA | AG188: http://www.centcom.mil/en/news/articles/oct.-8-u.s.-military-partner-nations-conduct-airstrikes-against-isil
A189: 7/10/2014 - 8/10/2014 | B189: US & UAE | C189: 1 | D189: 1 | E189: 1 | F189: 374 | G189: NA | H189: Mix of coalition bomber, fighter, and remotely piloted aircraft | I189: Northwest of Dayr az Zawr | J189: Dayr az Zawr: 35.3333° N, 40.1500° E | K189: NA | L189: ISIL strongholds near Dayr Az Zawr | M189: The strikes were conducted as part of the President's comprehensive strategy to degrade and ultimately destroy ISIL. The destruction and degradation of ISIL targets in Syria and Iraq further limits the terrorist group's ability to lead, control, project power and conduct operations | N189: Destroyed 1 x ISIL tank | O189: NA | P189: NA | Q189: NA | R189: NA | S189: NA | T189: NA | U189: 1 | V189: 1 | W189: NA | X189: NA | Y189: NA | Z189: NA | AA189: NA | AB189: NA | AC189: NA | AD189: NA | AE189: NA | AF189: NA | AG189: http://www.centcom.mil/en/news/articles/oct.-8-u.s.-military-partner-nations-conduct-airstrikes-against-isil
A190: 7/10/2014 - 8/10/2014 | B190: US, UK & Netherlands | C190: 1 | D190: 1 | E190: 1 | F190: 375 | G190: NA | H190: Mix of US fighter and remotely piloted aircraft | I190: East of Fallujah | J190: Fallujah: 33.3500° N, 43.7833° E | K190: NA | L190: ISIL strongholds near Fallujah | M190: The strikes were conducted as part of the President's comprehensive strategy to degrade and ultimately destroy ISIL. The destruction and degradation of ISIL targets in Syria and Iraq further limits the terrorist group's ability to lead, control, project power and conduct operations | N190: Destroyed 1 x ISIL checkpoint and 1 x ISIL armed vehicle | O190: NA | P190: NA | Q190: NA | R190: NA | S190: NA | T190: NA | U190: 1 | V190: 1 | W190: NA | X190: NA | Y190: NA | Z190: NA | AA190: 1 | AB190: 1 | AC190: NA | AD190: NA | AE190: NA | AF190: NA | AG190: http://www.centcom.mil/en/news/articles/oct.-8-u.s.-military-partner-nations-conduct-airstrikes-against-isil
A191: 7/10/2014 - 8/10/2014 | B191: US, UK & Netherlands | C191: 1 | D191: 1 | E191: 1 | F191: 376 | G191: NA | H191: Mix of US fighter and remotely piloted aircraft | I191: Western Ramadi | J191: Ramadi: 33.4167° N, 43.3000° E | K191: NA | L191: ISIL strongholds near Ramadi | M191: The strikes were conducted as part of the President's comprehensive strategy to degrade and ultimately destroy ISIL. The destruction and degradation of ISIL targets in Syria and Iraq further limits the terrorist group's ability to lead, control, project power and conduct operations | N191: Destroyed 3 x ISIL-held buildings and damaged 2 x ISIL-held buildings , destroyed 2 x ISIL anti-aircraft artillery pieces, and destroyed 1 x ISIL unit. | O191: NA | P191: NA | Q191: NA | R191: NA | S191: 5 | T191: 5 | U191: NA | V191: NA | W191: 2 | X191: 2 | Y191: 1 | Z191: 1 | AA191: NA | AB191: NA | AC191: NA | AD191: NA | AE191: NA | AF191: NA | AG191: http://www.centcom.mil/en/news/articles/oct.-8-u.s.-military-partner-nations-conduct-airstrikes-against-isil
A192: 7/10/2014 - 8/10/2014 | B192: US, UK & Netherlands | C192: 1 | D192: 1 | E192: 1 | F192: 377 | G192: NA | H192: Mix of US fighter and remotely piloted aircraft | I192: Northwest of Ramadi | J192: Ramadi: 33.4167° N, 43.3000° E | K192: NA | L192: ISIL strongholds near Ramadi | M192: The strikes were conducted as part of the President's comprehensive strategy to degrade and ultimately destroy ISIL. The destruction and degradation of ISIL targets in Syria and Iraq further limits the terrorist group's ability to lead, control, project power and conduct operations | N192: Destroyed 1 x ISIL checkpoint | O192: NA | P192: NA | Q192: NA | R192: NA | S192: NA | T192: NA | U192: NA | V192: NA | W192: NA | X192: NA | Y192: NA | Z192: NA | AA192: 1 | AB192: 1 | AC192: NA | AD192: NA | AE192: NA | AF192: NA | AG192: http://www.centcom.mil/en/news/articles/oct.-8-u.s.-military-partner-nations-conduct-airstrikes-against-isil
A193: 7/10/2014 - 8/10/2014 | B193: US, UK & Netherlands | C193: 1 | D193: 1 | E193: 1 | F193: 378 | G193: NA | H193: Mix of US fighter and remotely piloted aircraft | I193: Northeast of Sinjar Mountain | J193: Sinjar Mountain: 36.3667° N, 41.7218° E | K193: NA | L193: ISIL strongholds near Sinjar | M193: The strikes were conducted as part of the President's comprehensive strategy to degrade and ultimately destroy ISIL. The destruction and degradation of ISIL targets in Syria and Iraq further limits the terrorist group's ability to lead, control, project power and conduct operations | N193: Destroyed 1 x ISIL armed vehicle | O193: NA | P193: NA | Q193: NA | R193: NA | S193: NA | T193: NA | U193: 1 | V193: 1 | W193: NA | X193: NA | Y193: NA | Z193: NA | AA193: NA | AB193: NA | AC193: NA | AD193: NA | AE193: NA | AF193: NA | AG193: http://www.centcom.mil/en/news/articles/oct.-8-u.s.-military-partner-nations-conduct-airstrikes-against-isil
A194: 7/10/2014 - 8/10/2014 | B194: US, UK & Netherlands | C194: 1 | D194: 1 | E194: 1 | F194: 379 | G194: NA | H194: Mix of US fighter and remotely piloted aircraft | I194: Northeast of Sinjar | J194: Sinjar: 36.3225° N, 41.8642° E | K194: NA | L194: ISIL strongholds near Sinjar | M194: The strikes were conducted as part of the President's comprehensive strategy to degrade and ultimately destroy ISIL. The destruction and degradation of ISIL targets in Syria and Iraq further limits the terrorist group's ability to lead, control, project power and conduct operations | N194: Strike against an ISIL vehicle unsuccessful | O194: NA | P194: NA | Q194: NA | R194: NA | S194: NA | T194: NA | U194: 0 | V194: 0 | W194: NA | X194: NA | Y194: NA | Z194: NA | AA194: NA | AB194: NA | AC194: NA | AD194: NA | AE194: NA | AF194: NA | AG194: http://www.centcom.mil/en/news/articles/oct.-8-u.s.-military-partner-nations-conduct-airstrikes-against-isil
A195: 08/10/2014 - 09/10/2014 | B195: US | C195: 5 | D195: 5 | E195: 5 | F195: 384 | G195: NA | H195: Mix of US bomber, fighter and remotely piloted aircraft | I195: South of Kobani | J195: Kobani, Ayn al-Arab: 36.889722° N, 38.355556° E | K195: NA | L195: ISIL strongholds near Kobani | M195: The strikes were conducted as part of the President's comprehensive strategy to degrade and ultimately destroy ISIL. The destruction and degradation of ISIL targets in Syria and Iraq further limits the terrorist group's ability to lead, control, project power and conduct operations | N195: Damaged 1 x ISIL training camp, destroyed 1 x ISIL support building and destroyed 2 x ISIL vehicles. Struck 1 x small ISIL unit and 1 x large ISIL unit | O195: 1 | P195: 1 | Q195: NA | R195: NA | S195: 1 | T195: 1 | U195: 2 | V195: 2 | W195: NA | X195: NA | Y195: 2 | Z195: 2 | AA195: NA | AB195: NA | AC195: NA | AD195: NA | AE195: NA | AF195: NA | AG195: http://www.centcom.mil/en/news/articles/oct.-9-u.s.-military-conduct-airstrikes-against-isil-in-syria1
A196: 2014-10-09 | B196: US | C196: 6 | D196: 6 | E196: 6 | F196: 390 | G196: NA | H196: US bomber aircraft | I196: South of Kobani | J196: Kobani, Ayn al-Arab: 36.889722° N, 38.355556° E | K196: NA | L196: ISIL strongholds near Kobani | M196: The strikes were conducted as part of the President's comprehensive strategy to degrade and ultimately destroy ISIL. The destruction and degradation of ISIL targets in Syria and Iraq further limits the terrorist group's ability to lead, control, project power and conduct operations | N196: Destroyed 2 x ISIL-held buildings, 1 x ISIL tank, 1 x ISIL heavy machine gun, and damaged 1 x ISIL fighting position. Strikes also struck 1 x large and 2 x small ISIL units | O196: NA | P196: NA | Q196: NA | R196: NA | S196: 2 | T196: 2 | U196: 1 | V196: 1 | W196: 1 | X196: 1 | Y196: 4 | Z196: 4 | AA196: NA | AB196: NA | AC196: NA | AD196: NA | AE196: NA | AF196: NA | AG196: http://www.centcom.mil/en/news/articles/oct-9-u.s.-military-conducts-airstrikes-against-isil-in-syria-and-iraq
A197: 2014-10-09 | B197: US | C197: 3 | D197: 3 | E197: 3 | F197: 393 | G197: NA | H197: US bomber aircraft | I197: North of Kobani | J197: Kobani, Ayn al-Arab: 36.889722° N, 38.355556° E | K197: NA | L197: ISIL strongholds near Kobani | M197: The strikes were conducted as part of the President's comprehensive strategy to degrade and ultimately destroy ISIL. The destruction and degradation of ISIL targets in Syria and Iraq further limits the terrorist group's ability to lead, control, project power and conduct operations | N197: Struck 2 x small ISIL units and destroyed 2 x ISIL-held buildings | O197: NA | P197: NA | Q197: NA | R197: NA | S197: 2 | T197: 2 | U197: NA | V197: NA | W197: NA | X197: NA | Y197: 2 | Z197: 2 | AA197: NA | AB197: NA | AC197: NA | AD197: NA | AE197: NA | AF197: NA | AG197: http://www.centcom.mil/en/news/articles/oct-9-u.s.-military-conducts-airstrikes-against-isil-in-syria-and-iraq
A198: 2014-10-09 | B198: US | C198: 1 | D198: 1 | E198: 1 | F198: 394 | G198: NA | H198: US bomber aircraft | I198: South of Sinjar | J198: Sinjar: 36.3225° N, 41.8642° E | K198: NA | L198: ISIL strongholds near Sinjar | M198: The strikes were conducted as part of the President's comprehensive strategy to degrade and ultimately destroy ISIL. The destruction and degradation of ISIL targets in Syria and Iraq further limits the terrorist group's ability to lead, control, project power and conduct operations | N198: Destroyed 1 x ISIL bunker and 1 x ammunition cache, and 1 x small ISIL unit | O198: NA | P198: NA | Q198: NA | R198: NA | S198: 1 | T198: 1 | U198: NA | V198: NA | W198: 1 | X198: 1 | Y198: 1 | Z198: 1 | AA198: NA | AB198: NA | AC198: NA | AD198: NA | AE198: NA | AF198: NA | AG198: http://www.centcom.mil/en/news/articles/oct-9-u.s.-military-conducts-airstrikes-against-isil-in-syria-and-iraq
A199: 2014-10-09 | B199: US | C199: 1 | D199: 1 | E199: 1 | F199: 395 | G199: NA | H199: US bomber aircraft | I199: South of Sinjar Mountain | J199: Sinjar Mountain: 36.3667° N, 41.7218° E | K199: NA | L199: ISIL strongholds near Sinjar Mountain | M199: The strikes were conducted as part of the President's comprehensive strategy to degrade and ultimately destroy ISIL. The destruction and degradation of ISIL targets in Syria and Iraq further limits the terrorist group's ability to lead, control, project power and conduct operations | N199: Destroyed 1 x ISIL armed vehicle and 1 x small ISIL unit. | O199: NA | P199: NA | Q199: NA | R199: NA | S199: NA | T199: NA | U199: 1 | V199: 1 | W199: NA | X199: NA | Y199: 1 | Z199: 1 | AA199: NA | AB199: NA | AC199: NA | AD199: NA | AE199: NA | AF199: NA | AG199: http://www.centcom.mil/en/news/articles/oct-9-u.s.-military-conducts-airstrikes-against-isil-in-syria-and-iraq
A200: 09/10/2014 - 10/10/2014 | B200: US, UAE & Saudi Arabia | C200: 2 | D200: 2 | E200: 2 | F200: 397 | G200: NA | H200: Mix of coalition attack, bomber, fighter and remotely piloted aircraft | I200: Southeast of Kobani | J200: Kobani, Ayn al-Arab: 36.889722° N, 38.355556° E | K200: NA | L200: ISIL strongholds near Kobani | M200: The strikes were conducted as part of the President's comprehensive strategy to degrade and ultimately destroy ISIL. The destruction and degradation of ISIL targets in Syria and Iraq further limits the terrorist group's ability to lead, control, project power and conduct operations | N200: Destroyed 2 x ISIL training facilities | O200: 2 | P200: 2 | Q200: NA | R200: NA | S200: NA | T200: NA | U200: NA | V200: NA | W200: NA | X200: NA | Y200: NA | Z200: NA | AA200: NA | AB200: NA | AC200: NA | AD200: NA | AE200: NA | AF200: NA | AG200: http://www.centcom.mil/en/news/articles/oct.-10-u.s.-military-conducts-airstrikes-against-isil-in-syria-and-iraq
... 196 more rows

Sheet Database methodology

Sheet Database colour scales
